Workbook

Sheet Input
A1: L2/L1 = | B1: =67.5/45 -> 1.5
A3: Mi | B3: (L1/10) | C3: Moment influence line for point i
A4: Ri | B4: (1) | C4: Reaction influence line for support i
A5: Qi | B5: (1) | C5: Shear influence line for point i
A6: Di | B6: (L1^3/EI)/100 | C6: Deflection influence line for point i
A7: Si | B7: (L1^2/EI)/10 | C7: Rotation angle influence line for support i
A8: M-i | B8: (L1/10) | C8: Moment diagram when a unit point load is applied at point i
A9: MSi | B9: (L1^2/10) | C9: Moment diagram when uniformly distributed loads are applied at span i
A10: Q-i | B10: (1) | C10: Shear diagram when a unit point load is applied at point i
A11: QSi | B11: (L1) | C11: Shear diagram when uniformly distributed loads are applied at span i
A12: D-i | B12: (L1^3/EI)/100 | C12: Deflection diagram when a unit point load is applied at point i
A13: DSi | B13: (L1^4/EI)/100 | C13: Deflection diagram when uniformly distributed loads are applied at span i
A14: SSi | B14: (L1^3/EI)/10 | C14: Rotation angle diagram when uniformly distributed loads are applied at support i

Sheet 3 span Calculation (hidden)
CM2: Span | CN2: 1 | CW2: 2
CM3: x/L | CN3: 0 | CO3: =+CN3+1/8 -> 0.125 | CP3: 0.25 | CQ3: 0.375 | CR3: 0.5 | CS3: 0.625 | CT3: 0.75 | CU3: 0.875 | CV3: 1 | CW3: 0 | CX3: =+CW3+1/8 -> 0.125 | CY3: =+CX3+1/8 -> 0.25 | CZ3: =+CY3+1/8 -> 0.375 | DA3: =+CZ3+1/8 -> 0.5
CM4: 1-x/L | CN4: =1-CN3 -> 1 | CO4: =1-CO3 -> 0.875 | CP4: 0.75 | CQ4: 0.625 | CR4: 0.5 | CS4: 0.375 | CT4: 0.25 | CU4: 0.125 | CV4: 0 | CW4: 1 | CX4: 0.875 | CY4: 0.75 | CZ4: 0.625 | DA4: 0.5
CM5: Mx0 | CN5: =+CN3*(1-CN3) -> 0 | CO5: 0.109375 | CP5: 0.1875 | CQ5: 0.234375 | CR5: 0.25 | CS5: 0.234375 | CT5: 0.1875 | CU5: 0.109375 | CV5: 0 | CW5: 0 | CX5: 0.109375 | CY5: =+CY3*(1-CY3) -> 0.1875 | CZ5: 0.234375 | DA5: 0.25
CM6: Mx1 | CN6: =+CN3 -> 0 | CO6: 0.125 | CP6: 0.25 | CQ6: 0.375 | CR6: 0.5 | CS6: 0.625 | CT6: 0.75 | CU6: 0.875 | CV6: 1 | CW6: 1 | CX6: 1 | CY6: 1 | CZ6: 1 | DA6: 1
CM7: Mx2 | CN7: =+CN3 -> 0 | CO7: 0.125 | CP7: 0.25 | CQ7: 0.375 | CR7: 0.5 | CS7: 0.625 | CT7: 0.75 | CU7: 0.875 | CV7: 1 | CW7: =1-2*CW3 -> 1 | CX7: =1-2*CX3 -> 0.75 | CY7: =1-2*CY3 -> 0.5 | CZ7: =1-2*CZ3 -> 0.25 | DA7: =1-2*DA3 -> 0
D8: Bending Moment | R8: Shear Force | U8: Reaction | CM8: fx1 | CN8: =+(CN3-CN3^3)/6 -> 0 | CO8: =+(CO3-CO3^3)/6 -> 0.0205078125 | CP8: 0.0390625 | CQ8: 0.0537109375 | CR8: 0.0625 | CS8: 0.0634765625 | CT8: 0.0546875 | CU8: 0.0341796875 | CV8: 0 | CW8: =+(3*CW3-3*CW3^2)/6*Input!$B$1^2 -> 0 | CX8: =+(3*CX3-3*CX3^2)/6*Input!$B$1^2 -> 0.123046875 | CY8: =+(3*CY3-3*CY3^2)/6*Input!$B$1^2 -> 0.2109375 | CZ8: =+(3*CZ3-3*CZ3^2)/6*Input!$B$1^2 -> 0.263671875 | DA8: =+(3*DA3-3*DA3^2)/6*Input!$B$1^2 -> 0.28125
D9: 0 | E9: =+D9+1 -> 1 | F9: 2 | G9: 3 | H9: 4 | I9: 5 | J9: 6 | K9: 7 | L9: 8 | M9: 8 | N9: =+M9+1 -> 9 | O9: =+N9+1 -> 10 | P9: =+O9+1 -> 11 | Q9: =+P9+1 -> 12 | R9: lQB | S9: rQB | T9: lQC | U9: RA | V9: RB | AN9: 1 | AO9: =+AN9+1 -> 2 | AP9: 3 | AQ9: 4 | AR9: 5 | AS9: 6 | AT9: 7 | AU9: 8 | AV9: 9 | AW9: 10 | CM9: fx2 | CN9: =+CN8 -> 0 | CO9: =+CO8 -> 0.0205078125 | CP9: 0.0390625 | CQ9: 0.0537109375 | CR9: 0.0625 | CS9: 0.0634765625 | CT9: 0.0546875 | CU9: 0.0341796875 | CV9: 0 | CW9: =+(CW3-3*CW3^2+2*CW3^3)/6*Input!$B$1^2 -> 0 | CX9: =+(CX3-3*CX3^2+2*CX3^3)/6*Input!$B$1^2 -> 0.03076171875 | CY9: =+(CY3-3*CY3^2+2*CY3^3)/6*Input!$B$1^2 -> 0.03515625 | CZ9: =+(CZ3-3*CZ3^2+2*CZ3^3)/6*Input!$B$1^2 -> 0.02197265625 | DA9: =+(DA3-3*DA3^2+2*DA3^3)/6*Input!$B$1^2 -> 0
D10: =+E10+1 -> 24 | E10: 23 | F10: 22 | G10: 21 | H10: 20 | I10: 19 | J10: 18 | K10: 17 | L10: 16 | M10: =+N10+1 -> 16 | N10: =+O10+1 -> 15 | O10: =+P10+1 -> 14 | P10: =+Q10+1 -> 13 | Q10: 12
C11: =+E11 -> 0 | D11: =+DQ17 -> 0 | E11: =+DR17 -> 0 | F11: =+DS17 -> 0 | G11: =+DT17 -> 0 | H11: =+DU17 -> 0 | I11: =+DV17 -> 0 | J11: =+DW17 -> 0 | K11: =+DX17 -> 0 | L11: =+DY17 -> 0 | M11: =+DZ17 -> 0 | N11: =+EA17 -> 0 | O11: =+EB17 -> 0 | P11: =+EC17 -> 0 | Q11: =+ED17 -> 0 | R11: =+BN17 -> 0 | S11: =+BP17 -> 0 | T11: =+S11 -> 0 | U11: =+BI17 -> 1 | V11: =+BL17 -> 0
C12: =+C11+1 -> 1 | D12: 0 | E12: 1.059945913 | F12: 0.8698918269 | G12: 0.6798377404 | H12: 0.4897836538 | I12: 0.2997295673 | J12: 0.1096754808 | K12: -0.08037860577 | L12: -0.2704326923 | M12: -0.2704326923 | N12: -0.2264873798 | O12: -0.1825420673 | P12: -0.1385967548 | Q12: -0.09465144231 | R12: -0.1520432692 | S12: 0.0234375 | T12: 0.0234375 | U12: 0.8479567308 | V12: 0.1754807692 | AN12: 0 | AO12: =+U12 -> 0.8479567308 | AP12: =+U12 -> 0.8479567308 | AQ12: =+R12 -> -0.1520432692 | AR12: =+R12 -> -0.1520432692 | AS12: 0.0234375 | AT12: =-S12 -> -0.0234375 | AU12: =-R12 -> 0.1520432692 | AV12: =-R12 -> 0.1520432692 | AW12: 0
C13: 2 | D13: 0 | E13: 0.8731112637 | F13: 1.746222527 | G13: 1.369333791 | H13: 0.9924450549 | I13: 0.6155563187 | J13: 0.2386675824 | K13: -0.1382211538 | L13: -0.5151098901 | M13: -0.5151098901 | N13: -0.431404533 | O13: -0.3476991758 | P13: -0.2639938187 | Q13: -0.1802884615 | R13: -0.301510989 | S13: 0.04464285714 | T13: 0.04464285714 | U13: 0.698489011 | V13: 0.3461538462 | AN13: 0 | AO13: 0.698489011 | AP13: 0.698489011 | AQ13: -0.301510989 | AR13: -0.301510989 | AS13: 0.04464285714 | AT13: -0.04464285714 | AU13: 0.301510989 | AV13: 0.301510989 | AW13: 0
C14: 3 | D14: 0 | E14: 0.6927154876 | F14: 1.385430975 | G14: 2.078146463 | H14: 1.520861951 | I14: 0.9635774382 | J14: 0.4062929258 | K14: -0.1509915865 | L14: -0.7082760989 | M14: -0.7082760989 | N14: -0.5931812328 | O14: -0.4780863668 | P14: -0.3629915007 | Q14: -0.2478966346 | R14: -0.4458276099 | S14: 0.06138392857 | T14: 0.06138392857 | U14: 0.5541723901 | V14: 0.5072115385 | AN14: 0 | AO14: 0.5541723901 | AP14: 0.5541723901 | AQ14: -0.4458276099 | AR14: -0.4458276099 | AS14: 0.06138392857 | AT14: -0.06138392857 | AU14: 0.4458276099 | AV14: 0.4458276099 | AW14: 0
C15: 4 | D15: 0 | E15: 0.521978022 | F15: 1.043956044 | G15: 1.565934066 | H15: 2.087912088 | I15: 1.35989011 | J15: 0.6318681319 | K15: -0.09615384615 | L15: -0.8241758242 | M15: -0.8241758242 | N15: -0.6902472527 | O15: -0.5563186813 | P15: -0.4223901099 | Q15: -0.2884615385 | R15: -0.5824175824 | S15: 0.07142857143 | T15: 0.07142857143 | U15: 0.4175824176 | V15: 0.6538461538 | AN15: 0 | AO15: 0.4175824176 | AP15: 0.4175824176 | AQ15: -0.5824175824 | AR15: -0.5824175824 | AS15: 0.07142857143 | AT15: -0.07142857143 | AU15: 0.5824175824 | AV15: 0.5824175824 | AW15: 0
C16: 5 | D16: 0 | E16: 0.3641183036 | F16: 0.7282366071 | G16: 1.092354911 | H16: 1.456473214 | I16: 1.820591518 | J16: 0.9347098214 | K16: 0.048828125 | L16: -0.8370535714 | M16: -0.8370535714 | N16: -0.7010323661 | O16: -0.5650111607 | P16: -0.4289899554 | Q16: -0.29296875 | R16: -0.7087053571 | S16: 0.07254464286 | T16: 0.07254464286 | U16: 0.2912946429 | V16: 0.78125 | AN16: 0 | AO16: 0.2912946429 | AP16: 0.2912946429 | AQ16: -0.7087053571 | AR16: -0.7087053571 | AS16: 0.07254464286 | AT16: -0.07254464286 | AU16: 0.7087053571 | AV16: 0.7087053571 | AW16: 0 | BD16: Span | BE16: e/L | BF16: X(1)/L1 | BG16: X(2)/L1 | BH16: RA0 | BI16: RA | BJ16: RA-1 | BK16: RB0 | BL16: RB | BM16: lQB0 | BN16: lQB | BO16: rQB0 | BP16: rQB | BQ16: rQB-1 | BS16: SA0 | BT16: SA1 | BU16: SA2 | BV16: SA | BX16: lSB0 | BY16: lSB1 | BZ16: lSB2 | CA16: lSB | CC16: rSB0 | CD16: rSB1 | CE16: rSB2 | CF16: rSB
C17: 6 | D17: 0 | E17: 0.2223557692 | F17: 0.4447115385 | G17: 0.6670673077 | H17: 0.8894230769 | I17: 1.111778846 | J17: 1.334134615 | K17: 0.3064903846 | L17: -0.7211538462 | M17: -0.7211538462 | N17: -0.6039663462 | O17: -0.4867788462 | P17: -0.3695913462 | Q17: -0.2524038462 | R17: -0.8221153846 | S17: 0.0625 | T17: 0.0625 | U17: 0.1778846154 | V17: 0.8846153846 | AN17: 0 | AO17: 0.1778846154 | AP17: 0.1778846154 | AQ17: -0.8221153846 | AR17: -0.8221153846 | AS17: 0.0625 | AT17: -0.0625 | AU17: 0.8221153846 | AV17: 0.8221153846 | AW17: 0 | BC17: =+BE17 -> 0 | BD17: 1 | BE17: 0 | BF17: =-1/(12*(1/3+Input!$B$1/2))*(BE17-BE17^3) -> 0 | BG17: =-1/(12*(1/3+Input!$B$1/6))*(BE17-BE17^3) -> 0 | BH17: =1-1*BE17 -> 1 | BI17: =+BH17+BF17+BG17 -> 1 | BJ17: =+BI17-1 -> 0 | BK17: =+BE17 -> 0 | BL17: =+BK17-BF17-(1+2/Input!$B$1)*BG17 -> 0 | BM17: =-BE17 -> 0 | BN17: =+BM17+BF17+BG17 -> 0 | BP17: =+BO17-2*BG17/Input!$B$1 -> 0 | BS17: =-(1-BE17)*(1-(1-BE17)^2)/6 -> 0 | BT17: =-BF17/6 -> 0 | BU17: =-BG17/6 -> 0 | BV17: =+BS17+BT17+BU17 -> 0 | BX17: =+BE17*(1-BE17^2)/6 -> 0 | BY17: =+BF17/3 -> 0 | BZ17: =+BG17/3 -> 0 | CA17: =+BX17+BY17+BZ17 -> 0 | CD17: =-BF17/2*Input!$B$1 -> 0 | CE17: =-BG17/6*Input!$B$1 -> 0 | CF17: =+CC17+CD17+CE17 -> 0 | CN17: 0 | CO17: =+IF($BE17<=CO$3,CO$5/CO$3*$BE17,CO$5-CO$5/(1-CO$3)*($BE17-CO$3)) -> 0 | CP17: 0 | CQ17: 0 | CR17: 0 | CS17: 0 | CT17: 0 | CU17: 0 | CV17: 0 | DB17: =+CN17+CN$6*$BF17+CN$7*$BG17 -> 0 | DC17: =+CO17+CO$6*$BF17+CO$7*$BG17 -> 0 | DD17: =+CP17+CP$6*$BF17+CP$7*$BG17 -> 0 | DE17: =+CQ17+CQ$6*$BF17+CQ$7*$BG17 -> 0 | DF17: =+CR17+CR$6*$BF17+CR$7*$BG17 -> 0 | DG17: =+CS17+CS$6*$BF17+CS$7*$BG17 -> 0 | DH17: =+CT17+CT$6*$BF17+CT$7*$BG17 -> 0 | DI17: =+CU17+CU$6*$BF17+CU$7*$BG17 -> 0 | DJ17: =+CV17+CV$6*$BF17+CV$7*$BG17 -> 0 | DK17: =+CW17+CW$6*$BF17+CW$7*$BG17 -> 0 | DL17: =+CX17+CX$6*$BF17+CX$7*$BG17 -> 0 | DM17: =+CY17+CY$6*$BF17+CY$7*$BG17 -> 0 | DN17: =+CZ17+CZ$6*$BF17+CZ$7*$BG17 -> 0 | DO17: =+DA17+DA$6*$BF17+DA$7*$BG17 -> 0 | DQ17: =+DB17*10 -> 0 | DR17: =+DC17*10 -> 0 | DS17: 0 | DT17: 0 | DU17: 0 | DV17: 0 | DW17: 0 | DX17: 0 | DY17: 0 | DZ17: 0 | EA17: 0 | EB17: 0 | EC17: 0 | ED17: 0 | EF17: =+IF($BE17<=CN$3,1/6*(1-CN$3)*$BE17*(1-(1-CN$3)^2-$BE17^2),1/6*CN$3*(1-$BE17)*(1-CN$3^2-(1-$BE17)^2)) -> 0 | EG17: =+IF($BE17<=CO$3,1/6*(1-CO$3)*$BE17*(1-(1-CO$3)^2-$BE17^2),1/6*CO$3*(1-$BE17)*(1-CO$3^2-(1-$BE17)^2)) -> 0 | EH17: =+IF($BE17<=CP$3,1/6*(1-CP$3)*$BE17*(1-(1-CP$3)^2-$BE17^2),1/6*CP$3*(1-$BE17)*(1-CP$3^2-(1-$BE17)^2)) -> 0 | EI17: =+IF($BE17<=CQ$3,1/6*(1-CQ$3)*$BE17*(1-(1-CQ$3)^2-$BE17^2),1/6*CQ$3*(1-$BE17)*(1-CQ$3^2-(1-$BE17)^2)) -> 0 | EJ17: =+IF($BE17<=CR$3,1/6*(1-CR$3)*$BE17*(1-(1-CR$3)^2-$BE17^2),1/6*CR$3*(1-$BE17)*(1-CR$3^2-(1-$BE17)^2)) -> 0 | EK17: =+IF($BE17<=CS$3,1/6*(1-CS$3)*$BE17*(1-(1-CS$3)^2-$BE17^2),1/6*CS$3*(1-$BE17)*(1-CS$3^2-(1-$BE17)^2)) -> 0 | EL17: =+IF($BE17<=CT$3,1/6*(1-CT$3)*$BE17*(1-(1-CT$3)^2-$BE17^2),1/6*CT$3*(1-$BE17)*(1-CT$3^2-(1-$BE17)^2)) -> 0 | EM17: =+IF($BE17<=CU$3,1/6*(1-CU$3)*$BE17*(1-(1-CU$3)^2-$BE17^2),1/6*CU$3*(1-$BE17)*(1-CU$3^2-(1-$BE17)^2)) -> 0 | EN17: =+IF($BE17<=CV$3,1/6*(1-CV$3)*$BE17*(1-(1-CV$3)^2-$BE17^2),1/6*CV$3*(1-$BE17)*(1-CV$3^2-(1-$BE17)^2)) -> 0 | EU17: =+EF17+CN$8*$BF17+CN$9*$BG17 -> 0 | EV17: =+EG17+CO$8*$BF17+CO$9*$BG17 -> 0 | EW17: 0 | EX17: 0 | EY17: 0 | EZ17: 0 | FA17: 0 | FB17: 0 | FC17: 0 | FD17: 0 | FE17: 0 | FF17: 0 | FG17: 0 | FH17: 0 | FJ17: =+EU17*100 -> 0 | FK17: =+EV17*100 -> 0 | FL17: 0 | FM17: 0 | FN17: 0 | FO17: 0 | FP17: 0 | FQ17: 0 | FR17: 0 | FS17: 0 | FT17: 0 | FU17: 0 | FV17: 0 | FW17: 0
C18: 7 | D18: 0 | E18: 0.09990985577 | F18: 0.1998197115 | G18: 0.2997295673 | H18: 0.3996394231 | I18: 0.4995492788 | J18: 0.5994591346 | K18: 0.6993689904 | L18: -0.4507211538 | M18: -0.4507211538 | N18: -0.3774789663 | O18: -0.3042367788 | P18: -0.2309945913 | Q18: -0.1577524038 | R18: -0.9200721154 | S18: 0.0390625 | T18: 0.0390625 | U18: 0.07992788462 | V18: 0.9591346154 | AN18: 0 | AO18: 0.07992788462 | AP18: 0.07992788462 | AQ18: -0.9200721154 | AR18: -0.9200721154 | AS18: 0.0390625 | AT18: -0.0390625 | AU18: 0.9200721154 | AV18: 0.9200721154 | AW18: 0 | BC18: =+BC17+1 -> 1 | BE18: =+BE17+1/8 -> 0.125 | BF18: =-1/(12*(1/3+Input!$B$1/2))*(BE18-BE18^3) -> -0.009465144231 | BG18: =-1/(12*(1/3+Input!$B$1/6))*(BE18-BE18^3) -> -0.017578125 | BH18: =1-1*BE18 -> 0.875 | BI18: =+BH18+BF18+BG18 -> 0.8479567308 | BJ18: =+BI18-1 -> -0.1520432692 | BK18: =+BE18 -> 0.125 | BL18: =+BK18-BF18-(1+2/Input!$B$1)*BG18 -> 0.1754807692 | BM18: =-BE18 -> -0.125 | BN18: =+BM18+BF18+BG18 -> -0.1520432692 | BP18: =+BO18-2*BG18/Input!$B$1 -> 0.0234375 | BS18: =-(1-BE18)*(1-(1-BE18)^2)/6 -> -0.0341796875 | BT18: =-BF18/6 -> 0.001577524038 | BU18: =-BG18/6 -> 0.0029296875 | BV18: =+BS18+BT18+BU18 -> -0.02967247596 | BX18: =+BE18*(1-BE18^2)/6 -> 0.0205078125 | BY18: =+BF18/3 -> -0.003155048077 | BZ18: =+BG18/3 -> -0.005859375 | CA18: =+BX18+BY18+BZ18 -> 0.01149338942 | CD18: =-BF18/2*Input!$B$1 -> 0.007098858173 | CE18: =-BG18/6*Input!$B$1 -> 0.00439453125 | CF18: =+CC18+CD18+CE18 -> 0.01149338942 | CN18: 0 | CO18: 0.109375 | CP18: 0.09375 | CQ18: 0.078125 | CR18: 0.0625 | CS18: 0.046875 | CT18: 0.03125 | CU18: 0.015625 | CV18: 0 | DB18: 0 | DC18: 0.1059945913 | DD18: 0.08698918269 | DE18: 0.06798377404 | DF18: 0.04897836538 | DG18: 0.02997295673 | DH18: 0.01096754808 | DI18: -0.008037860577 | DJ18: -0.02704326923 | DK18: -0.02704326923 | DL18: -0.02264873798 | DM18: -0.01825420673 | DN18: -0.01385967548 | DO18: -0.009465144231 | DQ18: =+DB18*10 -> 0 | DR18: 1.059945913 | DS18: 0.8698918269 | DT18: 0.6798377404 | DU18: 0.4897836538 | DV18: 0.2997295673 | DW18: 0.1096754808 | DX18: -0.08037860577 | DY18: -0.2704326923 | DZ18: -0.2704326923 | EA18: -0.2264873798 | EB18: -0.1825420673 | EC18: -0.1385967548 | ED18: -0.09465144231 | EF18: 0 | EG18: 0.003987630208 | EH18: 0.006591796875 | EI18: 0.007731119792 | EJ18: 0.007649739583 | EK18: 0.006591796875 | EL18: 0.004801432292 | EM18: 0.002522786458 | EN18: 0 | EU18: =+EF18+CN$8*$BF18+CN$9*$BG18 -> 0 | EV18: 0.003433031914 | EW18: 0.005535419171 | EX18: 0.006278600448 | EY18: 0.005959535256 | EZ18: 0.004875183105 | FA18: 0.003322503506 | FB18: 0.001598455967 | FC18: 0 | FD18: 0 | FE18: -0.001705389756 | FF18: -0.002614534818 | FG18: -0.002881930425 | FH18: -0.002662071815 | FJ18: =+EU18*100 -> 0 | FK18: 0.3433031914 | FL18: 0.5535419171 | FM18: 0.6278600448 | FN18: 0.5959535256 | FO18: 0.4875183105 | FP18: 0.3322503506 | FQ18: 0.1598455967 | FR18: 0 | FS18: 0 | FT18: -0.1705389756 | FU18: -0.2614534818 | FV18: -0.2881930425 | FW18: -0.2662071815
C19: 8 | D19: 0 | E19: 0 | F19: 0 | G19: 0 | H19: 0 | I19: 0 | J19: 0 | K19: 0 | L19: 0 | M19: 0 | N19: 0 | O19: 0 | P19: 0 | Q19: 0 | R19: -1 | S19: 0 | T19: 0 | U19: 0 | V19: 1 | BC19: =+BC18+1 -> 2 | BE19: =+BE18+1/8 -> 0.25 | BF19: =-1/(12*(1/3+Input!$B$1/2))*(BE19-BE19^3) -> -0.01802884615 | BG19: =-1/(12*(1/3+Input!$B$1/6))*(BE19-BE19^3) -> -0.03348214286 | BH19: 0.75 | BI19: 0.698489011 | BJ19: -0.301510989 | BK19: 0.25 | BL19: =+BK19-BF19-(1+2/Input!$B$1)*BG19 -> 0.3461538462 | BM19: -0.25 | BN19: -0.301510989 | BP19: =+BO19-2*BG19/Input!$B$1 -> 0.04464285714 | BS19: -0.0546875 | BT19: 0.003004807692 | BU19: 0.005580357143 | BV19: -0.04610233516 | BX19: 0.0390625 | BY19: -0.006009615385 | BZ19: -0.01116071429 | CA19: 0.02189217033 | CD19: =-BF19/2*Input!$B$1 -> 0.01352163462 | CE19: =-BG19/6*Input!$B$1 -> 0.008370535714 | CF19: 0.02189217033 | CN19: 0 | CO19: 0.09375 | CP19: 0.1875 | CQ19: 0.15625 | CR19: 0.125 | CS19: 0.09375 | CT19: 0.0625 | CU19: 0.03125 | CV19: 0 | DB19: 0 | DC19: 0.08731112637 | DD19: 0.1746222527 | DE19: 0.1369333791 | DF19: 0.09924450549 | DG19: 0.06155563187 | DH19: 0.02386675824 | DI19: -0.01382211538 | DJ19: -0.05151098901 | DK19: -0.05151098901 | DL19: -0.0431404533 | DM19: -0.03476991758 | DN19: -0.02639938187 | DO19: -0.01802884615 | DQ19: 0 | DR19: 0.8731112637 | DS19: 1.746222527 | DT19: 1.369333791 | DU19: 0.9924450549 | DV19: 0.6155563187 | DW19: 0.2386675824 | DX19: -0.1382211538 | DY19: -0.5151098901 | DZ19: -0.5151098901 | EA19: -0.431404533 | EB19: -0.3476991758 | EC19: -0.2639938187 | ED19: -0.1802884615 | EF19: 0 | EG19: 0.006591796875 | EH19: 0.01171875 | EI19: 0.01424153646 | EJ19: 0.01432291667 | EK19: 0.01245117188 | EL19: 0.009114583333 | EM19: 0.004801432292 | EN19: 0 | EU19: 0 | EV19: 0.005535419171 | EW19: 0.009706601992 | EX19: 0.01147483295 | EY19: 0.01110347985 | EZ19: 0.009181431362 | FA19: 0.006297576122 | FB19: 0.003040802784 | FC19: 0 | FD19: 0 | FE19: -0.003248361441 | FF19: -0.00498006632 | FG19: -0.005489391285 | FH19: -0.005070612981 | FJ19: 0 | FK19: 0.5535419171 | FL19: 0.9706601992 | FM19: 1.147483295 | FN19: 1.110347985 | FO19: 0.9181431362 | FP19: 0.6297576122 | FQ19: 0.3040802784 | FR19: 0 | FS19: 0 | FT19: -0.3248361441 | FU19: -0.498006632 | FV19: -0.5489391285 | FW19: -0.5070612981
C20: =+C19 -> 8 | D20: 0 | E20: 0 | F20: 0 | G20: 0 | H20: 0 | I20: 0 | J20: 0 | K20: 0 | L20: 0 | M20: 0 | N20: 0 | O20: 0 | P20: 0 | Q20: 0 | R20: 0 | S20: 1 | T20: =+S20-1 -> 0 | U20: 0 | V20: 1 | BC20: 3 | BE20: 0.375 | BF20: =-1/(12*(1/3+Input!$B$1/2))*(BE20-BE20^3) -> -0.02478966346 | BG20: =-1/(12*(1/3+Input!$B$1/6))*(BE20-BE20^3) -> -0.04603794643 | BH20: 0.625 | BI20: 0.5541723901 | BJ20: -0.4458276099 | BK20: 0.375 | BL20: =+BK20-BF20-(1+2/Input!$B$1)*BG20 -> 0.5072115385 | BM20: -0.375 | BN20: -0.4458276099 | BP20: =+BO20-2*BG20/Input!$B$1 -> 0.06138392857 | BS20: -0.0634765625 | BT20: 0.004131610577 | BU20: 0.007672991071 | BV20: -0.05167196085 | BX20: 0.0537109375 | BY20: -0.008263221154 | BZ20: -0.01534598214 | CA20: 0.0301017342 | CD20: =-BF20/2*Input!$B$1 -> 0.0185922476 | CE20: =-BG20/6*Input!$B$1 -> 0.01150948661 | CF20: 0.0301017342 | CN20: 0 | CO20: 0.078125 | CP20: 0.15625 | CQ20: 0.234375 | CR20: 0.1875 | CS20: 0.140625 | CT20: 0.09375 | CU20: 0.046875 | CV20: 0 | DB20: 0 | DC20: 0.06927154876 | DD20: 0.1385430975 | DE20: 0.2078146463 | DF20: 0.1520861951 | DG20: 0.09635774382 | DH20: 0.04062929258 | DI20: -0.01509915865 | DJ20: -0.07082760989 | DK20: -0.07082760989 | DL20: -0.05931812328 | DM20: -0.04780863668 | DN20: -0.03629915007 | DO20: -0.02478966346 | DQ20: 0 | DR20: 0.6927154876 | DS20: 1.385430975 | DT20: 2.078146463 | DU20: 1.520861951 | DV20: 0.9635774382 | DW20: 0.4062929258 | DX20: -0.1509915865 | DY20: -0.7082760989 | DZ20: -0.7082760989 | EA20: -0.5931812328 | EB20: -0.4780863668 | EC20: -0.3629915007 | ED20: -0.2478966346 | EF20: 0 | EG20: 0.007731119792 | EH20: 0.01424153646 | EI20: 0.01831054688 | EJ20: 0.01904296875 | EK20: 0.01684570312 | EL20: 0.01245117188 | EM20: 0.006591796875 | EN20: 0 | EU20: 0 | EV20: 0.006278600448 | EW20: 0.01147483295 | EX20: 0.01450632955 | EY20: 0.01461624313 | EZ20: 0.01234980992 | FA20: 0.008577786959 | FB20: 0.004170931303 | FC20: 0 | FD20: 0 | FE20: -0.004466496981 | FF20: -0.006847591191 | FG20: -0.007547913017 | FH20: -0.006972092849 | FJ20: 0 | FK20: 0.6278600448 | FL20: 1.147483295 | FM20: 1.450632955 | FN20: 1.461624313 | FO20: 1.234980992 | FP20: 0.8577786959 | FQ20: 0.4170931303 | FR20: 0 | FS20: 0 | FT20: -0.4466496981 | FU20: -0.6847591191 | FV20: -0.7547913017 | FW20: -0.6972092849
C21: =+C20+1 -> 9 | D21: 0 | E21: -0.1039475661 | F21: -0.2078951322 | G21: -0.3118426983 | H21: -0.4157902644 | I21: -0.5197378305 | J21: -0.6236853966 | K21: -0.7276329627 | L21: -0.8315805288 | M21: -0.8315805288 | N21: 0.8749624399 | O21: 0.7065054087 | P21: 0.5380483774 | Q21: 0.3695913462 | R21: -0.08315805288 | S21: 0.91015625 | T21: -0.08984375 | U21: -0.08315805288 | V21: 0.9933143029 | AN21: 0 | AO21: =+R21 -> -0.08315805288 | AP21: =+R21 -> -0.08315805288 | AQ21: 0.91015625 | AR21: =+S21 -> 0.91015625 | AS21: =-S21 -> -0.91015625 | AT21: =-S21 -> -0.91015625 | AU21: =-R21 -> 0.08315805288 | AV21: =-R21 -> 0.08315805288 | AW21: 0 | BC21: 4 | BE21: 0.5 | BF21: =-1/(12*(1/3+Input!$B$1/2))*(BE21-BE21^3) -> -0.02884615385 | BG21: =-1/(12*(1/3+Input!$B$1/6))*(BE21-BE21^3) -> -0.05357142857 | BH21: 0.5 | BI21: 0.4175824176 | BJ21: -0.5824175824 | BK21: 0.5 | BL21: =+BK21-BF21-(1+2/Input!$B$1)*BG21 -> 0.6538461538 | BM21: -0.5 | BN21: -0.5824175824 | BP21: =+BO21-2*BG21/Input!$B$1 -> 0.07142857143 | BS21: -0.0625 | BT21: 0.004807692308 | BU21: 0.008928571429 | BV21: -0.04876373626 | BX21: 0.0625 | BY21: -0.009615384615 | BZ21: -0.01785714286 | CA21: 0.03502747253 | CD21: =-BF21/2*Input!$B$1 -> 0.02163461538 | CE21: =-BG21/6*Input!$B$1 -> 0.01339285714 | CF21: 0.03502747253 | CN21: 0 | CO21: 0.0625 | CP21: 0.125 | CQ21: 0.1875 | CR21: 0.25 | CS21: 0.1875 | CT21: 0.125 | CU21: 0.0625 | CV21: 0 | DB21: 0 | DC21: 0.0521978022 | DD21: 0.1043956044 | DE21: 0.1565934066 | DF21: 0.2087912088 | DG21: 0.135989011 | DH21: 0.06318681319 | DI21: -0.009615384615 | DJ21: -0.08241758242 | DK21: -0.08241758242 | DL21: -0.06902472527 | DM21: -0.05563186813 | DN21: -0.04223901099 | DO21: -0.02884615385 | DQ21: 0 | DR21: 0.521978022 | DS21: 1.043956044 | DT21: 1.565934066 | DU21: 2.087912088 | DV21: 1.35989011 | DW21: 0.6318681319 | DX21: -0.09615384615 | DY21: -0.8241758242 | DZ21: -0.8241758242 | EA21: -0.6902472527 | EB21: -0.5563186813 | EC21: -0.4223901099 | ED21: -0.2884615385 | EF21: 0 | EG21: 0.007649739583 | EH21: 0.01432291667 | EI21: 0.01904296875 | EJ21: 0.02083333333 | EK21: 0.01904296875 | EL21: 0.01432291667 | EM21: 0.007649739583 | EN21: 0 | EU21: 0 | EV21: 0.005959535256 | EW21: 0.01110347985 | EX21: 0.01461624313 | EY21: 0.01568223443 | EZ21: 0.01381138393 | FA21: 0.009815705128 | FB21: 0.004832732372 | FC21: 0 | FD21: 0 | FE21: -0.005197378305 | FF21: -0.007968106113 | FG21: -0.008783026056 | FH21: -0.008112980769 | FJ21: 0 | FK21: 0.5959535256 | FL21: 1.110347985 | FM21: 1.461624313 | FN21: 1.568223443 | FO21: 1.381138393 | FP21: 0.9815705128 | FQ21: 0.4832732372 | FR21: 0 | FS21: 0 | FT21: -0.5197378305 | FU21: -0.7968106113 | FV21: -0.8783026056 | FW21: -0.8112980769
C22: 10 | D22: 0 | E22: -0.1593621223 | F22: -0.3187242445 | G22: -0.4780863668 | H22: -0.637448489 | I22: -0.7968106113 | J22: -0.9561727335 | K22: -1.115534856 | L22: -1.274896978 | M22: -1.274896978 | N22: 0.2066878434 | O22: 1.688272665 | P22: 1.294857486 | Q22: 0.9014423077 | R22: -0.1274896978 | S22: 0.7901785714 | T22: -0.2098214286 | U22: -0.1274896978 | V22: 0.9176682692 | AN22: 0 | AO22: -0.1274896978 | AP22: -0.1274896978 | AQ22: 0.7901785714 | AR22: 0.7901785714 | AS22: -0.7901785714 | AT22: -0.7901785714 | AU22: 0.1274896978 | AV22: 0.1274896978 | AW22: 0 | BC22: 5 | BE22: 0.625 | BF22: =-1/(12*(1/3+Input!$B$1/2))*(BE22-BE22^3) -> -0.029296875 | BG22: =-1/(12*(1/3+Input!$B$1/6))*(BE22-BE22^3) -> -0.05440848214 | BH22: 0.375 | BI22: 0.2912946429 | BJ22: -0.7087053571 | BK22: 0.625 | BL22: =+BK22-BF22-(1+2/Input!$B$1)*BG22 -> 0.78125 | BM22: -0.625 | BN22: -0.7087053571 | BP22: =+BO22-2*BG22/Input!$B$1 -> 0.07254464286 | BS22: -0.0537109375 | BT22: 0.0048828125 | BU22: 0.009068080357 | BV22: -0.03976004464 | BX22: 0.0634765625 | BY22: -0.009765625 | BZ22: -0.01813616071 | CA22: 0.03557477679 | CD22: =-BF22/2*Input!$B$1 -> 0.02197265625 | CE22: =-BG22/6*Input!$B$1 -> 0.01360212054 | CF22: 0.03557477679 | CN22: 0 | CO22: 0.046875 | CP22: 0.09375 | CQ22: 0.140625 | CR22: 0.1875 | CS22: 0.234375 | CT22: 0.15625 | CU22: 0.078125 | CV22: 0 | DB22: 0 | DC22: 0.03641183036 | DD22: 0.07282366071 | DE22: 0.1092354911 | DF22: 0.1456473214 | DG22: 0.1820591518 | DH22: 0.09347098214 | DI22: 0.0048828125 | DJ22: -0.08370535714 | DK22: -0.08370535714 | DL22: -0.07010323661 | DM22: -0.05650111607 | DN22: -0.04289899554 | DO22: -0.029296875 | DQ22: 0 | DR22: 0.3641183036 | DS22: 0.7282366071 | DT22: 1.092354911 | DU22: 1.456473214 | DV22: 1.820591518 | DW22: 0.9347098214 | DX22: 0.048828125 | DY22: -0.8370535714 | DZ22: -0.8370535714 | EA22: -0.7010323661 | EB22: -0.5650111607 | EC22: -0.4289899554 | ED22: -0.29296875 | EF22: 0 | EG22: 0.006591796875 | EH22: 0.01245117188 | EI22: 0.01684570312 | EJ22: 0.01904296875 | EK22: 0.01831054688 | EL22: 0.01424153646 | EM22: 0.007731119792 | EN22: 0 | EU22: 0 | EV22: 0.004875183105 | EW22: 0.009181431362 | EX22: 0.01234980992 | EY22: 0.01381138393 | EZ22: 0.01299721854 | FA22: 0.00966389974 | FB22: 0.004870096842 | FC22: 0 | FD22: 0 | FE22: -0.005278587341 | FF22: -0.008092607771 | FG22: -0.008920260838 | FH22: -0.008239746094 | FJ22: 0 | FK22: 0.4875183105 | FL22: 0.9181431362 | FM22: 1.234980992 | FN22: 1.381138393 | FO22: 1.299721854 | FP22: 0.966389974 | FQ22: 0.4870096842 | FR22: 0 | FS22: 0 | FT22: -0.5278587341 | FU22: -0.8092607771 | FV22: -0.8920260838 | FW22: -0.8239746094
C23: 11 | D23: 0 | E23: -0.1756605211 | F23: -0.3513210422 | G23: -0.5269815634 | H23: -0.7026420845 | I23: -0.8783026056 | J23: -1.053963127 | K23: -1.229623648 | L23: -1.405284169 | M23: -1.405284169 | N23: -0.1863249056 | O23: 1.032634358 | P23: 2.251593621 | Q23: 1.595552885 | R23: -0.1405284169 | S23: 0.6501116071 | T23: -0.3498883929 | U23: -0.1405284169 | V23: 0.790640024 | AN23: 0 | AO23: -0.1405284169 | AP23: -0.1405284169 | AQ23: 0.6501116071 | AR23: 0.6501116071 | AS23: -0.6501116071 | AT23: -0.6501116071 | AU23: 0.1405284169 | AV23: 0.1405284169 | AW23: 0 | BC23: 6 | BE23: 0.75 | BF23: =-1/(12*(1/3+Input!$B$1/2))*(BE23-BE23^3) -> -0.02524038462 | BG23: =-1/(12*(1/3+Input!$B$1/6))*(BE23-BE23^3) -> -0.046875 | BH23: 0.25 | BI23: 0.1778846154 | BJ23: -0.8221153846 | BK23: 0.75 | BL23: =+BK23-BF23-(1+2/Input!$B$1)*BG23 -> 0.8846153846 | BM23: -0.75 | BN23: -0.8221153846 | BP23: =+BO23-2*BG23/Input!$B$1 -> 0.0625 | BS23: -0.0390625 | BT23: 0.004206730769 | BU23: 0.0078125 | BV23: -0.02704326923 | BX23: 0.0546875 | BY23: -0.008413461538 | BZ23: -0.015625 | CA23: 0.03064903846 | CD23: =-BF23/2*Input!$B$1 -> 0.01893028846 | CE23: =-BG23/6*Input!$B$1 -> 0.01171875 | CF23: 0.03064903846 | CN23: 0 | CO23: 0.03125 | CP23: 0.0625 | CQ23: 0.09375 | CR23: 0.125 | CS23: 0.15625 | CT23: 0.1875 | CU23: 0.09375 | CV23: 0 | DB23: 0 | DC23: 0.02223557692 | DD23: 0.04447115385 | DE23: 0.06670673077 | DF23: 0.08894230769 | DG23: 0.1111778846 | DH23: 0.1334134615 | DI23: 0.03064903846 | DJ23: -0.07211538462 | DK23: -0.07211538462 | DL23: -0.06039663462 | DM23: -0.04867788462 | DN23: -0.03695913462 | DO23: -0.02524038462 | DQ23: 0 | DR23: 0.2223557692 | DS23: 0.4447115385 | DT23: 0.6670673077 | DU23: 0.8894230769 | DV23: 1.111778846 | DW23: 1.334134615 | DX23: 0.3064903846 | DY23: -0.7211538462 | DZ23: -0.7211538462 | EA23: -0.6039663462 | EB23: -0.4867788462 | EC23: -0.3695913462 | ED23: -0.2524038462 | EF23: 0 | EG23: 0.004801432292 | EH23: 0.009114583333 | EI23: 0.01245117188 | EJ23: 0.01432291667 | EK23: 0.01424153646 | EL23: 0.01171875 | EM23: 0.006591796875 | EN23: 0 | EU23: 0 | EV23: 0.003322503506 | EW23: 0.006297576122 | EX23: 0.008577786959 | EY23: 0.009815705128 | EZ23: 0.00966389974 | FA23: 0.007774939904 | FB23: 0.004126915565 | FC23: 0 | FD23: 0 | FE23: -0.004547706017 | FF23: -0.006972092849 | FG23: -0.007685147799 | FH23: -0.007098858173 | FJ23: 0 | FK23: 0.3322503506 | FL23: 0.6297576122 | FM23: 0.8577786959 | FN23: 0.9815705128 | FO23: 0.966389974 | FP23: 0.7774939904 | FQ23: 0.4126915565 | FR23: 0 | FS23: 0 | FT23: -0.4547706017 | FU23: -0.6972092849 | FV23: -0.7685147799 | FW23: -0.7098858173
C24: 12 | D24: 0 | E24: -0.1622596154 | F24: -0.3245192308 | G24: -0.4867788462 | H24: -0.6490384615 | I24: -0.8112980769 | J24: -0.9735576923 | K24: -1.135817308 | L24: -1.298076923 | M24: -1.298076923 | N24: -0.3605769231 | O24: 0.5769230769 | P24: 1.514423077 | Q24: 2.451923077 | R24: -0.1298076923 | S24: 0.5 | T24: -0.5 | U24: -0.1298076923 | V24: 0.6298076923 | AN24: 0 | AO24: -0.1298076923 | AP24: -0.1298076923 | AQ24: 0.5 | AR24: 0.5 | AS24: -0.5 | AT24: -0.5 | AU24: 0.1298076923 | AV24: 0.1298076923 | AW24: 0 | BC24: 7 | BE24: 0.875 | BF24: =-1/(12*(1/3+Input!$B$1/2))*(BE24-BE24^3) -> -0.01577524038 | BG24: =-1/(12*(1/3+Input!$B$1/6))*(BE24-BE24^3) -> -0.029296875 | BH24: 0.125 | BI24: 0.07992788462 | BJ24: -0.9200721154 | BK24: 0.875 | BL24: =+BK24-BF24-(1+2/Input!$B$1)*BG24 -> 0.9591346154 | BM24: -0.875 | BN24: -0.9200721154 | BP24: =+BO24-2*BG24/Input!$B$1 -> 0.0390625 | BS24: -0.0205078125 | BT24: 0.002629206731 | BU24: 0.0048828125 | BV24: -0.01299579327 | BX24: 0.0341796875 | BY24: -0.005258413462 | BZ24: -0.009765625 | CA24: 0.01915564904 | CD24: =-BF24/2*Input!$B$1 -> 0.01183143029 | CE24: =-BG24/6*Input!$B$1 -> 0.00732421875 | CF24: 0.01915564904 | CN24: 0 | CO24: 0.015625 | CP24: 0.03125 | CQ24: 0.046875 | CR24: 0.0625 | CS24: 0.078125 | CT24: 0.09375 | CU24: 0.109375 | CV24: 0 | DB24: 0 | DC24: 0.009990985577 | DD24: 0.01998197115 | DE24: 0.02997295673 | DF24: 0.03996394231 | DG24: 0.04995492788 | DH24: 0.05994591346 | DI24: 0.06993689904 | DJ24: -0.04507211538 | DK24: -0.04507211538 | DL24: -0.03774789663 | DM24: -0.03042367788 | DN24: -0.02309945913 | DO24: -0.01577524038 | DQ24: 0 | DR24: 0.09990985577 | DS24: 0.1998197115 | DT24: 0.2997295673 | DU24: 0.3996394231 | DV24: 0.4995492788 | DW24: 0.5994591346 | DX24: 0.6993689904 | DY24: -0.4507211538 | DZ24: -0.4507211538 | EA24: -0.3774789663 | EB24: -0.3042367788 | EC24: -0.2309945913 | ED24: -0.1577524038 | EF24: 0 | EG24: 0.002522786458 | EH24: 0.004801432292 | EI24: 0.006591796875 | EJ24: 0.007649739583 | EK24: 0.007731119792 | EL24: 0.006591796875 | EM24: 0.003987630208 | EN24: 0 | EU24: 0 | EV24: 0.001598455967 | EW24: 0.003040802784 | EX24: 0.004170931303 | EY24: 0.004832732372 | EZ24: 0.004870096842 | FA24: 0.004126915565 | FB24: 0.00244707939 | FC24: 0 | FD24: 0 | FE24: -0.002842316261 | FF24: -0.00435755803 | FG24: -0.004803217374 | FH24: -0.004436786358 | FJ24: 0 | FK24: 0.1598455967 | FL24: 0.3040802784 | FM24: 0.4170931303 | FN24: 0.4832732372 | FO24: 0.4870096842 | FP24: 0.4126915565 | FQ24: 0.244707939 | FR24: 0 | FS24: 0 | FT24: -0.2842316261 | FU24: -0.435755803 | FV24: -0.4803217374 | FW24: -0.4436786358
C25: 13 | D25: 0 | E25: -0.1285762577 | F25: -0.2571525155 | G25: -0.3857287732 | H25: -0.5143050309 | I25: -0.6428812886 | J25: -0.7714575464 | K25: -0.9000338041 | L25: -1.028610062 | M25: -1.028610062 | N25: -0.3725693252 | O25: 0.2834714114 | P25: 0.939512148 | Q25: 1.595552885 | R25: -0.1028610062 | S25: 0.3498883929 | T25: -0.6501116071 | U25: -0.1028610062 | V25: 0.452749399 | AN25: 0 | AO25: -0.1028610062 | AP25: -0.1028610062 | AQ25: 0.3498883929 | AR25: 0.3498883929 | AS25: -0.3498883929 | AT25: -0.3498883929 | AU25: 0.1028610062 | AV25: 0.1028610062 | AW25: 0 | BC25: 8 | BE25: 1 | BF25: =-1/(12*(1/3+Input!$B$1/2))*(BE25-BE25^3) -> 0 | BG25: =-1/(12*(1/3+Input!$B$1/6))*(BE25-BE25^3) -> 0 | BH25: 0 | BI25: 0 | BJ25: -1 | BK25: 1 | BL25: =+BK25-BF25-(1+2/Input!$B$1)*BG25 -> 1 | BM25: -1 | BN25: -1 | BP25: =+BO25-2*BG25/Input!$B$1 -> 0 | BS25: 0 | BT25: 0 | BU25: 0 | BV25: 0 | BX25: 0 | BY25: 0 | BZ25: 0 | CA25: 0 | CD25: =-BF25/2*Input!$B$1 -> 0 | CE25: =-BG25/6*Input!$B$1 -> 0 | CF25: 0 | CN25: 0 | CO25: 0 | CP25: 0 | CQ25: 0 | CR25: 0 | CS25: 0 | CT25: 0 | CU25: 0 | CV25: 0 | DB25: 0 | DC25: 0 | DD25: 0 | DE25: 0 | DF25: 0 | DG25: 0 | DH25: 0 | DI25: 0 | DJ25: 0 | DK25: 0 | DL25: 0 | DM25: 0 | DN25: 0 | DO25: 0 | DQ25: 0 | DR25: 0 | DS25: 0 | DT25: 0 | DU25: 0 | DV25: 0 | DW25: 0 | DX25: 0 | DY25: 0 | DZ25: 0 | EA25: 0 | EB25: 0 | EC25: 0 | ED25: 0 | EF25: 0 | EG25: 0 | EH25: 0 | EI25: 0 | EJ25: 0 | EK25: 0 | EL25: 0 | EM25: 0 | EN25: 0 | EU25: 0 | EV25: 0 | EW25: 0 | EX25: 0 | EY25: 0 | EZ25: 0 | FA25: 0 | FB25: 0 | FC25: 0 | FD25: 0 | FE25: 0 | FF25: 0 | FG25: 0 | FH25: 0 | FJ25: 0 | FK25: 0 | FL25: 0 | FM25: 0 | FN25: 0 | FO25: 0 | FP25: 0 | FQ25: 0 | FR25: 0 | FS25: 0 | FT25: 0 | FU25: 0 | FV25: 0 | FW25: 0
C26: 14 | D26: 0 | E26: -0.08402730082 | F26: -0.1680546016 | G26: -0.2520819025 | H26: -0.3361092033 | I26: -0.4201365041 | J26: -0.5041638049 | K26: -0.5881911058 | L26: -0.6722184066 | M26: -0.6722184066 | N26: -0.278803228 | O26: 0.1146119505 | P26: 0.5080271291 | Q26: 0.9014423077 | R26: -0.06722184066 | S26: 0.2098214286 | T26: -0.7901785714 | U26: -0.06722184066 | V26: 0.2770432692 | AN26: 0 | AO26: -0.06722184066 | AP26: -0.06722184066 | AQ26: 0.2098214286 | AR26: 0.2098214286 | AS26: -0.2098214286 | AT26: -0.2098214286 | AU26: 0.06722184066 | AV26: 0.06722184066 | AW26: 0 | BC26: =+BC25 -> 8 | BD26: 2 | BE26: 0 | BF26: =-(Input!$B$1^2)/(12*(1/3+Input!$B$1/2))*(3*BE26-3*BE26^2) -> 0 | BG26: =-(Input!$B$1^2)/(12*(1/3+Input!$B$1/6))*(BE26-3*BE26^2+2*BE26^3) -> 0 | BI26: 0 | BK26: =1-BE26 -> 1 | BL26: =+BK26-BF26-(1+2/Input!$B$1)*BG26 -> 1 | BN26: 0 | BO26: =1-BE26 -> 1 | BP26: =+BO26-2*BG26/Input!$B$1 -> 1 | BQ26: =+BP26-1 -> 0 | BT26: 0 | BU26: 0 | BV26: 0 | BY26: 0 | BZ26: 0 | CA26: 0 | CC26: =-(1-BE26)*(1-(1-BE26)^2)/6*Input!$B$1^2 -> 0 | CD26: =-BF26/2*Input!$B$1 -> 0 | CE26: =-BG26/6*Input!$B$1 -> 0 | CF26: 0 | CW26: 0 | CX26: =+IF($BE26<=CX$3,CX$5/CX$3*$BE26,CX$5-CX$5/(1-CX$3)*($BE26-CX$3))*Input!$B$1 -> 0 | CY26: =+IF($BE26<=CY$3,CY$5/CY$3*$BE26,CY$5-CY$5/(1-CY$3)*($BE26-CY$3))*Input!$B$1 -> 0 | CZ26: =+IF($BE26<=CZ$3,CZ$5/CZ$3*$BE26,CZ$5-CZ$5/(1-CZ$3)*($BE26-CZ$3))*Input!$B$1 -> 0 | DA26: =+IF($BE26<=DA$3,DA$5/DA$3*$BE26,DA$5-DA$5/(1-DA$3)*($BE26-DA$3))*Input!$B$1 -> 0 | DB26: 0 | DC26: 0 | DD26: 0 | DE26: 0 | DF26: 0 | DG26: 0 | DH26: 0 | DI26: 0 | DJ26: 0 | DK26: 0 | DL26: 0 | DM26: 0 | DN26: 0 | DO26: 0 | DQ26: 0 | DR26: 0 | DS26: 0 | DT26: 0 | DU26: 0 | DV26: 0 | DW26: 0 | DX26: 0 | DY26: 0 | DZ26: 0 | EA26: 0 | EB26: 0 | EC26: 0 | ED26: 0 | EO26: =+IF($BE26<=CW$3,1/6*(1-CW$3)*$BE26*(1-(1-CW$3)^2-$BE26^2),1/6*CW$3*(1-$BE26)*(1-CW$3^2-(1-$BE26)^2))*Input!$B$1^3 -> 0 | EP26: =+IF($BE26<=CX$3,1/6*(1-CX$3)*$BE26*(1-(1-CX$3)^2-$BE26^2),1/6*CX$3*(1-$BE26)*(1-CX$3^2-(1-$BE26)^2))*Input!$B$1^3 -> 0 | EQ26: =+IF($BE26<=CY$3,1/6*(1-CY$3)*$BE26*(1-(1-CY$3)^2-$BE26^2),1/6*CY$3*(1-$BE26)*(1-CY$3^2-(1-$BE26)^2))*Input!$B$1^3 -> 0 | ER26: =+IF($BE26<=CZ$3,1/6*(1-CZ$3)*$BE26*(1-(1-CZ$3)^2-$BE26^2),1/6*CZ$3*(1-$BE26)*(1-CZ$3^2-(1-$BE26)^2))*Input!$B$1^3 -> 0 | ES26: =+IF($BE26<=DA$3,1/6*(1-DA$3)*$BE26*(1-(1-DA$3)^2-$BE26^2),1/6*DA$3*(1-$BE26)*(1-DA$3^2-(1-$BE26)^2))*Input!$B$1^3 -> 0 | EU26: 0 | EV26: 0 | EW26: 0 | EX26: 0 | EY26: 0 | EZ26: 0 | FA26: 0 | FB26: 0 | FC26: 0 | FD26: 0 | FE26: 0 | FF26: 0 | FG26: 0 | FH26: 0 | FJ26: 0 | FK26: 0 | FL26: 0 | FM26: 0 | FN26: 0 | FO26: 0 | FP26: 0 | FQ26: 0 | FR26: 0 | FS26: 0 | FT26: 0 | FU26: 0 | FV26: 0 | FW26: 0
C27: 15 | D27: 0 | E27: -0.03802959736 | F27: -0.07605919471 | G27: -0.1140887921 | H27: -0.1521183894 | I27: -0.1901479868 | J27: -0.2281775841 | K27: -0.2662071815 | L27: -0.3042367788 | M27: -0.3042367788 | N27: -0.1357797476 | O27: 0.03267728365 | P27: 0.2011343149 | Q27: 0.3695913462 | R27: -0.03042367788 | S27: 0.08984375 | T27: -0.91015625 | U27: -0.03042367788 | V27: 0.1202674279 | AN27: 0 | AO27: -0.03042367788 | AP27: -0.03042367788 | AQ27: 0.08984375 | AR27: 0.08984375 | AS27: -0.08984375 | AT27: -0.08984375 | AU27: 0.03042367788 | AV27: 0.03042367788 | AW27: 0 | BC27: =+BC26+1 -> 9 | BE27: =+BE26+1/8 -> 0.125 | BF27: =-(Input!$B$1^2)/(12*(1/3+Input!$B$1/2))*(3*BE27-3*BE27^2) -> -0.05679086538 | BG27: =-(Input!$B$1^2)/(12*(1/3+Input!$B$1/6))*(BE27-3*BE27^2+2*BE27^3) -> -0.0263671875 | BI27: -0.08315805288 | BK27: =1-BE27 -> 0.875 | BL27: =+BK27-BF27-(1+2/Input!$B$1)*BG27 -> 0.9933143029 | BN27: -0.08315805288 | BO27: =1-BE27 -> 0.875 | BP27: =+BO27-2*BG27/Input!$B$1 -> 0.91015625 | BQ27: =+BP27-1 -> -0.08984375 | BT27: 0.009465144231 | BU27: 0.00439453125 | BV27: 0.01385967548 | BY27: -0.01893028846 | BZ27: -0.0087890625 | CA27: -0.02771935096 | CC27: =-(1-BE27)*(1-(1-BE27)^2)/6*Input!$B$1^2 -> -0.07690429688 | CD27: =-BF27/2*Input!$B$1 -> 0.04259314904 | CE27: =-BG27/6*Input!$B$1 -> 0.006591796875 | CF27: -0.02771935096 | CW27: 0 | CX27: =+IF($BE27<=CX$3,CX$5/CX$3*$BE27,CX$5-CX$5/(1-CX$3)*($BE27-CX$3))*Input!$B$1 -> 0.1640625 | CY27: =+IF($BE27<=CY$3,CY$5/CY$3*$BE27,CY$5-CY$5/(1-CY$3)*($BE27-CY$3))*Input!$B$1 -> 0.140625 | CZ27: =+IF($BE27<=CZ$3,CZ$5/CZ$3*$BE27,CZ$5-CZ$5/(1-CZ$3)*($BE27-CZ$3))*Input!$B$1 -> 0.1171875 | DA27: =+IF($BE27<=DA$3,DA$5/DA$3*$BE27,DA$5-DA$5/(1-DA$3)*($BE27-DA$3))*Input!$B$1 -> 0.09375 | DB27: 0 | DC27: -0.01039475661 | DD27: -0.02078951322 | DE27: -0.03118426983 | DF27: -0.04157902644 | DG27: -0.05197378305 | DH27: -0.06236853966 | DI27: -0.07276329627 | DJ27: -0.08315805288 | DK27: -0.08315805288 | DL27: 0.08749624399 | DM27: 0.07065054087 | DN27: 0.05380483774 | DO27: 0.03695913462 | DQ27: 0 | DR27: -0.1039475661 | DS27: -0.2078951322 | DT27: -0.3118426983 | DU27: -0.4157902644 | DV27: -0.5197378305 | DW27: -0.6236853966 | DX27: -0.7276329627 | DY27: -0.8315805288 | DZ27: -0.8315805288 | EA27: 0.8749624399 | EB27: 0.7065054087 | EC27: 0.5380483774 | ED27: 0.3695913462 | EO27: =+IF($BE27<=CW$3,1/6*(1-CW$3)*$BE27*(1-(1-CW$3)^2-$BE27^2),1/6*CW$3*(1-$BE27)*(1-CW$3^2-(1-$BE27)^2))*Input!$B$1^3 -> 0 | EP27: =+IF($BE27<=CX$3,1/6*(1-CX$3)*$BE27*(1-(1-CX$3)^2-$BE27^2),1/6*CX$3*(1-$BE27)*(1-CX$3^2-(1-$BE27)^2))*Input!$B$1^3 -> 0.01345825195 | EQ27: =+IF($BE27<=CY$3,1/6*(1-CY$3)*$BE27*(1-(1-CY$3)^2-$BE27^2),1/6*CY$3*(1-$BE27)*(1-CY$3^2-(1-$BE27)^2))*Input!$B$1^3 -> 0.02224731445 | ER27: =+IF($BE27<=CZ$3,1/6*(1-CZ$3)*$BE27*(1-(1-CZ$3)^2-$BE27^2),1/6*CZ$3*(1-$BE27)*(1-CZ$3^2-(1-$BE27)^2))*Input!$B$1^3 -> 0.0260925293 | ES27: =+IF($BE27<=DA$3,1/6*(1-DA$3)*$BE27*(1-(1-DA$3)^2-$BE27^2),1/6*DA$3*(1-$BE27)*(1-DA$3^2-(1-$BE27)^2))*Input!$B$1^3 -> 0.02581787109 | EU27: 0 | EV27: -0.001705389756 | EW27: -0.003248361441 | EX27: -0.004466496981 | EY27: -0.005197378305 | EZ27: -0.005278587341 | FA27: -0.004547706017 | FB27: -0.002842316261 | FC27: 0 | FD27: 0 | FE27: 0.005659213433 | FF27: 0.009341019851 | FG27: 0.01053901819 | FH27: 0.009845440204 | FJ27: 0 | FK27: -0.1705389756 | FL27: -0.3248361441 | FM27: -0.4466496981 | FN27: -0.5197378305 | FO27: -0.5278587341 | FP27: -0.4547706017 | FQ27: -0.2842316261 | FR27: 0 | FS27: 0 | FT27: 0.5659213433 | FU27: 0.9341019851 | FV27: 1.053901819 | FW27: 0.9845440204
C28: 16 | D28: 0 | E28: 0 | F28: 0 | G28: 0 | H28: 0 | I28: 0 | J28: 0 | K28: 0 | L28: 0 | M28: 0 | N28: 0 | O28: 0 | P28: 0 | Q28: 0 | R28: 0 | S28: 0 | T28: -1 | U28: 0 | V28: 0 | BC28: =+BC27+1 -> 10 | BE28: =+BE27+1/8 -> 0.25 | BF28: =-(Input!$B$1^2)/(12*(1/3+Input!$B$1/2))*(3*BE28-3*BE28^2) -> -0.09735576923 | BG28: =-(Input!$B$1^2)/(12*(1/3+Input!$B$1/6))*(BE28-3*BE28^2+2*BE28^3) -> -0.03013392857 | BI28: -0.1274896978 | BK28: 0.75 | BL28: =+BK28-BF28-(1+2/Input!$B$1)*BG28 -> 0.9176682692 | BN28: -0.1274896978 | BO28: 0.75 | BP28: =+BO28-2*BG28/Input!$B$1 -> 0.7901785714 | BQ28: -0.2098214286 | BT28: 0.01622596154 | BU28: 0.005022321429 | BV28: 0.02124828297 | BY28: -0.03245192308 | BZ28: -0.01004464286 | CA28: -0.04249656593 | CC28: =-(1-BE28)*(1-(1-BE28)^2)/6*Input!$B$1^2 -> -0.123046875 | CD28: =-BF28/2*Input!$B$1 -> 0.07301682692 | CE28: =-BG28/6*Input!$B$1 -> 0.007533482143 | CF28: -0.04249656593 | CW28: 0 | CX28: =+IF($BE28<=CX$3,CX$5/CX$3*$BE28,CX$5-CX$5/(1-CX$3)*($BE28-CX$3))*Input!$B$1 -> 0.140625 | CY28: =+IF($BE28<=CY$3,CY$5/CY$3*$BE28,CY$5-CY$5/(1-CY$3)*($BE28-CY$3))*Input!$B$1 -> 0.28125 | CZ28: =+IF($BE28<=CZ$3,CZ$5/CZ$3*$BE28,CZ$5-CZ$5/(1-CZ$3)*($BE28-CZ$3))*Input!$B$1 -> 0.234375 | DA28: =+IF($BE28<=DA$3,DA$5/DA$3*$BE28,DA$5-DA$5/(1-DA$3)*($BE28-DA$3))*Input!$B$1 -> 0.1875 | DB28: 0 | DC28: -0.01593621223 | DD28: -0.03187242445 | DE28: -0.04780863668 | DF28: -0.0637448489 | DG28: -0.07968106113 | DH28: -0.09561727335 | DI28: -0.1115534856 | DJ28: -0.1274896978 | DK28: -0.1274896978 | DL28: 0.02066878434 | DM28: 0.1688272665 | DN28: 0.1294857486 | DO28: 0.09014423077 | DQ28: 0 | DR28: -0.1593621223 | DS28: -0.3187242445 | DT28: -0.4780863668 | DU28: -0.637448489 | DV28: -0.7968106113 | DW28: -0.9561727335 | DX28: -1.115534856 | DY28: -1.274896978 | DZ28: -1.274896978 | EA28: 0.2066878434 | EB28: 1.688272665 | EC28: 1.294857486 | ED28: 0.9014423077 | EO28: =+IF($BE28<=CW$3,1/6*(1-CW$3)*$BE28*(1-(1-CW$3)^2-$BE28^2),1/6*CW$3*(1-$BE28)*(1-CW$3^2-(1-$BE28)^2))*Input!$B$1^3 -> 0 | EP28: =+IF($BE28<=CX$3,1/6*(1-CX$3)*$BE28*(1-(1-CX$3)^2-$BE28^2),1/6*CX$3*(1-$BE28)*(1-CX$3^2-(1-$BE28)^2))*Input!$B$1^3 -> 0.02224731445 | EQ28: =+IF($BE28<=CY$3,1/6*(1-CY$3)*$BE28*(1-(1-CY$3)^2-$BE28^2),1/6*CY$3*(1-$BE28)*(1-CY$3^2-(1-$BE28)^2))*Input!$B$1^3 -> 0.03955078125 | ER28: =+IF($BE28<=CZ$3,1/6*(1-CZ$3)*$BE28*(1-(1-CZ$3)^2-$BE28^2),1/6*CZ$3*(1-$BE28)*(1-CZ$3^2-(1-$BE28)^2))*Input!$B$1^3 -> 0.04806518555 | ES28: =+IF($BE28<=DA$3,1/6*(1-DA$3)*$BE28*(1-(1-DA$3)^2-$BE28^2),1/6*DA$3*(1-$BE28)*(1-DA$3^2-(1-$BE28)^2))*Input!$B$1^3 -> 0.04833984375 | EU28: 0 | EV28: -0.002614534818 | EW28: -0.00498006632 | EX28: -0.006847591191 | EY28: -0.007968106113 | EZ28: -0.008092607771 | FA28: -0.006972092849 | FB28: -0.00435755803 | FC28: 0 | FD28: 0 | FE28: 0.009341019851 | FF28: 0.01795540275 | FG28: 0.02173308488 | FH28: 0.02095853365 | FJ28: 0 | FK28: -0.2614534818 | FL28: -0.498006632 | FM28: -0.6847591191 | FN28: -0.7968106113 | FO28: -0.8092607771 | FP28: -0.6972092849 | FQ28: -0.435755803 | FR28: 0 | FS28: 0 | FT28: 0.9341019851 | FU28: 1.795540275 | FV28: 2.173308488 | FW28: 2.095853365
C29: =+C28 -> 16 | D29: 0 | E29: 0 | F29: 0 | G29: 0 | H29: 0 | I29: 0 | J29: 0 | K29: 0 | L29: 0 | M29: 0 | N29: 0 | O29: 0 | P29: 0 | Q29: 0 | R29: 0 | S29: 0 | T29: =+S29 -> 0 | U29: 0 | V29: 0 | BC29: 11 | BE29: 0.375 | BF29: =-(Input!$B$1^2)/(12*(1/3+Input!$B$1/2))*(3*BE29-3*BE29^2) -> -0.1216947115 | BG29: =-(Input!$B$1^2)/(12*(1/3+Input!$B$1/6))*(BE29-3*BE29^2+2*BE29^3) -> -0.01883370536 | BI29: -0.1405284169 | BK29: 0.625 | BL29: =+BK29-BF29-(1+2/Input!$B$1)*BG29 -> 0.790640024 | BN29: -0.1405284169 | BO29: 0.625 | BP29: =+BO29-2*BG29/Input!$B$1 -> 0.6501116071 | BQ29: -0.3498883929 | BT29: 0.02028245192 | BU29: 0.003138950893 | BV29: 0.02342140282 | BY29: -0.04056490385 | BZ29: -0.006277901786 | CA29: -0.04684280563 | CC29: =-(1-BE29)*(1-(1-BE29)^2)/6*Input!$B$1^2 -> -0.1428222656 | CD29: =-BF29/2*Input!$B$1 -> 0.09127103365 | CE29: =-BG29/6*Input!$B$1 -> 0.004708426339 | CF29: -0.04684280563 | CW29: 0 | CX29: =+IF($BE29<=CX$3,CX$5/CX$3*$BE29,CX$5-CX$5/(1-CX$3)*($BE29-CX$3))*Input!$B$1 -> 0.1171875 | CY29: =+IF($BE29<=CY$3,CY$5/CY$3*$BE29,CY$5-CY$5/(1-CY$3)*($BE29-CY$3))*Input!$B$1 -> 0.234375 | CZ29: =+IF($BE29<=CZ$3,CZ$5/CZ$3*$BE29,CZ$5-CZ$5/(1-CZ$3)*($BE29-CZ$3))*Input!$B$1 -> 0.3515625 | DA29: =+IF($BE29<=DA$3,DA$5/DA$3*$BE29,DA$5-DA$5/(1-DA$3)*($BE29-DA$3))*Input!$B$1 -> 0.28125 | DB29: 0 | DC29: -0.01756605211 | DD29: -0.03513210422 | DE29: -0.05269815634 | DF29: -0.07026420845 | DG29: -0.08783026056 | DH29: -0.1053963127 | DI29: -0.1229623648 | DJ29: -0.1405284169 | DK29: -0.1405284169 | DL29: -0.01863249056 | DM29: 0.1032634358 | DN29: 0.2251593621 | DO29: 0.1595552885 | DQ29: 0 | DR29: =+DC29*10 -> -0.1756605211 | DS29: =+DD29*10 -> -0.3513210422 | DT29: =+DE29*10 -> -0.5269815634 | DU29: =+DF29*10 -> -0.7026420845 | DV29: =+DG29*10 -> -0.8783026056 | DW29: =+DH29*10 -> -1.053963127 | DX29: =+DI29*10 -> -1.229623648 | DY29: =+DJ29*10 -> -1.405284169 | DZ29: =+DK29*10 -> -1.405284169 | EA29: =+DL29*10 -> -0.1863249056 | EB29: =+DM29*10 -> 1.032634358 | EC29: =+DN29*10 -> 2.251593621 | ED29: =+DO29*10 -> 1.595552885 | EO29: =+IF($BE29<=CW$3,1/6*(1-CW$3)*$BE29*(1-(1-CW$3)^2-$BE29^2),1/6*CW$3*(1-$BE29)*(1-CW$3^2-(1-$BE29)^2))*Input!$B$1^3 -> 0 | EP29: =+IF($BE29<=CX$3,1/6*(1-CX$3)*$BE29*(1-(1-CX$3)^2-$BE29^2),1/6*CX$3*(1-$BE29)*(1-CX$3^2-(1-$BE29)^2))*Input!$B$1^3 -> 0.0260925293 | EQ29: =+IF($BE29<=CY$3,1/6*(1-CY$3)*$BE29*(1-(1-CY$3)^2-$BE29^2),1/6*CY$3*(1-$BE29)*(1-CY$3^2-(1-$BE29)^2))*Input!$B$1^3 -> 0.04806518555 | ER29: =+IF($BE29<=CZ$3,1/6*(1-CZ$3)*$BE29*(1-(1-CZ$3)^2-$BE29^2),1/6*CZ$3*(1-$BE29)*(1-CZ$3^2-(1-$BE29)^2))*Input!$B$1^3 -> 0.0617980957 | ES29: =+IF($BE29<=DA$3,1/6*(1-DA$3)*$BE29*(1-(1-DA$3)^2-$BE29^2),1/6*DA$3*(1-$BE29)*(1-DA$3^2-(1-$BE29)^2))*Input!$B$1^3 -> 0.06427001953 | EU29: 0 | EV29: -0.002881930425 | EW29: -0.005489391285 | EX29: -0.007547913017 | EY29: -0.008783026056 | EZ29: -0.008920260838 | FA29: -0.007685147799 | FB29: -0.004803217374 | FC29: 0 | FD29: 0 | FE29: 0.01053901819 | FF29: 0.02173308488 | FG29: 0.0292967964 | FH29: 0.03004338191 | FJ29: 0 | FK29: =+EV29*100 -> -0.2881930425 | FL29: =+EW29*100 -> -0.5489391285 | FM29: =+EX29*100 -> -0.7547913017 | FN29: =+EY29*100 -> -0.8783026056 | FO29: =+EZ29*100 -> -0.8920260838 | FP29: =+FA29*100 -> -0.7685147799 | FQ29: =+FB29*100 -> -0.4803217374 | FR29: =+FC29*100 -> 0 | FS29: =+FD29*100 -> 0 | FT29: =+FE29*100 -> 1.053901819 | FU29: =+FF29*100 -> 2.173308488 | FV29: =+FG29*100 -> 2.92967964 | FW29: =+FH29*100 -> 3.004338191
C30: =+C29+1 -> 17 | D30: 0 | E30: 0.01690204327 | F30: 0.03380408654 | G30: 0.05070612981 | H30: 0.06760817308 | I30: 0.08451021635 | J30: 0.1014122596 | K30: 0.1183143029 | L30: 0.1352163462 | M30: 0.1352163462 | N30: 0.06197415865 | O30: -0.01126802885 | P30: -0.08451021635 | Q30: -0.1577524038 | R30: 0.01352163462 | S30: -0.0390625 | T30: -0.0390625 | U30: 0.01352163462 | V30: -0.05258413462 | AN30: 0 | AO30: =+U30 -> 0.01352163462 | AP30: =+U30 -> 0.01352163462 | AQ30: =+R30 -> 0.01352163462 | AR30: =+R30 -> 0.01352163462 | AS30: -0.0390625 | AT30: =-S30 -> 0.0390625 | AU30: =-R30 -> -0.01352163462 | AV30: =-R30 -> -0.01352163462 | AW30: 0 | BC30: 12 | BE30: 0.5 | BF30: =-(Input!$B$1^2)/(12*(1/3+Input!$B$1/2))*(3*BE30-3*BE30^2) -> -0.1298076923 | BG30: =-(Input!$B$1^2)/(12*(1/3+Input!$B$1/6))*(BE30-3*BE30^2+2*BE30^3) -> 0 | BI30: -0.1298076923 | BK30: 0.5 | BL30: =+BK30-BF30-(1+2/Input!$B$1)*BG30 -> 0.6298076923 | BN30: -0.1298076923 | BO30: 0.5 | BP30: =+BO30-2*BG30/Input!$B$1 -> 0.5 | BQ30: -0.5 | BT30: 0.02163461538 | BU30: 0 | BV30: 0.02163461538 | BY30: -0.04326923077 | BZ30: 0 | CA30: -0.04326923077 | CC30: =-(1-BE30)*(1-(1-BE30)^2)/6*Input!$B$1^2 -> -0.140625 | CD30: =-BF30/2*Input!$B$1 -> 0.09735576923 | CE30: =-BG30/6*Input!$B$1 -> 0 | CF30: -0.04326923077 | CW30: 0 | CX30: =+IF($BE30<=CX$3,CX$5/CX$3*$BE30,CX$5-CX$5/(1-CX$3)*($BE30-CX$3))*Input!$B$1 -> 0.09375 | CY30: =+IF($BE30<=CY$3,CY$5/CY$3*$BE30,CY$5-CY$5/(1-CY$3)*($BE30-CY$3))*Input!$B$1 -> 0.1875 | CZ30: =+IF($BE30<=CZ$3,CZ$5/CZ$3*$BE30,CZ$5-CZ$5/(1-CZ$3)*($BE30-CZ$3))*Input!$B$1 -> 0.28125 | DA30: =+IF($BE30<=DA$3,DA$5/DA$3*$BE30,DA$5-DA$5/(1-DA$3)*($BE30-DA$3))*Input!$B$1 -> 0.375 | DB30: 0 | DC30: -0.01622596154 | DD30: -0.03245192308 | DE30: -0.04867788462 | DF30: -0.06490384615 | DG30: -0.08112980769 | DH30: -0.09735576923 | DI30: -0.1135817308 | DJ30: -0.1298076923 | DK30: -0.1298076923 | DL30: -0.03605769231 | DM30: 0.05769230769 | DN30: 0.1514423077 | DO30: 0.2451923077 | DQ30: 0 | DR30: -0.1622596154 | DS30: -0.3245192308 | DT30: -0.4867788462 | DU30: -0.6490384615 | DV30: -0.8112980769 | DW30: -0.9735576923 | DX30: -1.135817308 | DY30: -1.298076923 | DZ30: -1.298076923 | EA30: -0.3605769231 | EB30: 0.5769230769 | EC30: 1.514423077 | ED30: 2.451923077 | EO30: =+IF($BE30<=CW$3,1/6*(1-CW$3)*$BE30*(1-(1-CW$3)^2-$BE30^2),1/6*CW$3*(1-$BE30)*(1-CW$3^2-(1-$BE30)^2))*Input!$B$1^3 -> 0 | EP30: =+IF($BE30<=CX$3,1/6*(1-CX$3)*$BE30*(1-(1-CX$3)^2-$BE30^2),1/6*CX$3*(1-$BE30)*(1-CX$3^2-(1-$BE30)^2))*Input!$B$1^3 -> 0.02581787109 | EQ30: =+IF($BE30<=CY$3,1/6*(1-CY$3)*$BE30*(1-(1-CY$3)^2-$BE30^2),1/6*CY$3*(1-$BE30)*(1-CY$3^2-(1-$BE30)^2))*Input!$B$1^3 -> 0.04833984375 | ER30: =+IF($BE30<=CZ$3,1/6*(1-CZ$3)*$BE30*(1-(1-CZ$3)^2-$BE30^2),1/6*CZ$3*(1-$BE30)*(1-CZ$3^2-(1-$BE30)^2))*Input!$B$1^3 -> 0.06427001953 | ES30: =+IF($BE30<=DA$3,1/6*(1-DA$3)*$BE30*(1-(1-DA$3)^2-$BE30^2),1/6*DA$3*(1-$BE30)*(1-DA$3^2-(1-$BE30)^2))*Input!$B$1^3 -> 0.0703125 | EU30: 0 | EV30: -0.002662071815 | EW30: -0.005070612981 | EX30: -0.006972092849 | EY30: -0.008112980769 | EZ30: -0.008239746094 | FA30: -0.007098858173 | FB30: -0.004436786358 | FC30: 0 | FD30: 0 | FE30: 0.009845440204 | FF30: 0.02095853365 | FG30: 0.03004338191 | FH30: 0.03380408654 | FJ30: 0 | FK30: -0.2662071815 | FL30: -0.5070612981 | FM30: -0.6972092849 | FN30: -0.8112980769 | FO30: -0.8239746094 | FP30: -0.7098858173 | FQ30: -0.4436786358 | FR30: 0 | FS30: 0 | FT30: 0.9845440204 | FU30: 2.095853365 | FV30: 3.004338191 | FW30: 3.380408654
C31: 18 | D31: 0 | E31: 0.02704326923 | F31: 0.05408653846 | G31: 0.08112980769 | H31: 0.1081730769 | I31: 0.1352163462 | J31: 0.1622596154 | K31: 0.1893028846 | L31: 0.2163461538 | M31: 0.2163461538 | N31: 0.09915865385 | O31: -0.01802884615 | P31: -0.1352163462 | Q31: -0.2524038462 | R31: 0.02163461538 | S31: -0.0625 | T31: -0.0625 | U31: 0.02163461538 | V31: -0.08413461538 | AN31: 0 | AO31: 0.02163461538 | AP31: 0.02163461538 | AQ31: 0.02163461538 | AR31: 0.02163461538 | AS31: -0.0625 | AT31: 0.0625 | AU31: -0.02163461538 | AV31: -0.02163461538 | AW31: 0 | BC31: 13 | BE31: 0.625 | BF31: =-(Input!$B$1^2)/(12*(1/3+Input!$B$1/2))*(3*BE31-3*BE31^2) -> -0.1216947115 | BG31: =-(Input!$B$1^2)/(12*(1/3+Input!$B$1/6))*(BE31-3*BE31^2+2*BE31^3) -> 0.01883370536 | BI31: -0.1028610062 | BK31: 0.375 | BL31: =+BK31-BF31-(1+2/Input!$B$1)*BG31 -> 0.452749399 | BN31: -0.1028610062 | BO31: 0.375 | BP31: =+BO31-2*BG31/Input!$B$1 -> 0.3498883929 | BQ31: -0.6501116071 | BT31: 0.02028245192 | BU31: -0.003138950893 | BV31: 0.01714350103 | BY31: -0.04056490385 | BZ31: 0.006277901786 | CA31: -0.03428700206 | CC31: =-(1-BE31)*(1-(1-BE31)^2)/6*Input!$B$1^2 -> -0.1208496094 | CD31: =-BF31/2*Input!$B$1 -> 0.09127103365 | CE31: =-BG31/6*Input!$B$1 -> -0.004708426339 | CF31: -0.03428700206 | CW31: 0 | CX31: =+IF($BE31<=CX$3,CX$5/CX$3*$BE31,CX$5-CX$5/(1-CX$3)*($BE31-CX$3))*Input!$B$1 -> 0.0703125 | CY31: =+IF($BE31<=CY$3,CY$5/CY$3*$BE31,CY$5-CY$5/(1-CY$3)*($BE31-CY$3))*Input!$B$1 -> 0.140625 | CZ31: =+IF($BE31<=CZ$3,CZ$5/CZ$3*$BE31,CZ$5-CZ$5/(1-CZ$3)*($BE31-CZ$3))*Input!$B$1 -> 0.2109375 | DA31: =+IF($BE31<=DA$3,DA$5/DA$3*$BE31,DA$5-DA$5/(1-DA$3)*($BE31-DA$3))*Input!$B$1 -> 0.28125 | DB31: 0 | DC31: -0.01285762577 | DD31: -0.02571525155 | DE31: -0.03857287732 | DF31: -0.05143050309 | DG31: -0.06428812886 | DH31: -0.07714575464 | DI31: -0.09000338041 | DJ31: -0.1028610062 | DK31: -0.1028610062 | DL31: -0.03725693252 | DM31: 0.02834714114 | DN31: 0.0939512148 | DO31: 0.1595552885 | DQ31: 0 | DR31: -0.1285762577 | DS31: -0.2571525155 | DT31: -0.3857287732 | DU31: -0.5143050309 | DV31: -0.6428812886 | DW31: -0.7714575464 | DX31: -0.9000338041 | DY31: -1.028610062 | DZ31: -1.028610062 | EA31: -0.3725693252 | EB31: 0.2834714114 | EC31: 0.939512148 | ED31: 1.595552885 | EO31: =+IF($BE31<=CW$3,1/6*(1-CW$3)*$BE31*(1-(1-CW$3)^2-$BE31^2),1/6*CW$3*(1-$BE31)*(1-CW$3^2-(1-$BE31)^2))*Input!$B$1^3 -> 0 | EP31: =+IF($BE31<=CX$3,1/6*(1-CX$3)*$BE31*(1-(1-CX$3)^2-$BE31^2),1/6*CX$3*(1-$BE31)*(1-CX$3^2-(1-$BE31)^2))*Input!$B$1^3 -> 0.02224731445 | EQ31: =+IF($BE31<=CY$3,1/6*(1-CY$3)*$BE31*(1-(1-CY$3)^2-$BE31^2),1/6*CY$3*(1-$BE31)*(1-CY$3^2-(1-$BE31)^2))*Input!$B$1^3 -> 0.04202270508 | ER31: =+IF($BE31<=CZ$3,1/6*(1-CZ$3)*$BE31*(1-(1-CZ$3)^2-$BE31^2),1/6*CZ$3*(1-$BE31)*(1-CZ$3^2-(1-$BE31)^2))*Input!$B$1^3 -> 0.05685424805 | ES31: =+IF($BE31<=DA$3,1/6*(1-DA$3)*$BE31*(1-(1-DA$3)^2-$BE31^2),1/6*DA$3*(1-$BE31)*(1-DA$3^2-(1-$BE31)^2))*Input!$B$1^3 -> 0.06427001953 | EU31: 0 | EV31: -0.002109454228 | EW31: -0.004018008054 | EX31: -0.005524761074 | EY31: -0.006428812886 | EZ31: -0.006529263088 | FA31: -0.005625211276 | FB31: -0.003515757047 | FC31: 0 | FD31: 0 | FE31: 0.007852517642 | FF31: 0.01701484932 | FG31: 0.02518060181 | FH31: 0.03004338191 | FJ31: 0 | FK31: -0.2109454228 | FL31: -0.4018008054 | FM31: -0.5524761074 | FN31: -0.6428812886 | FO31: -0.6529263088 | FP31: -0.5625211276 | FQ31: -0.3515757047 | FR31: 0 | FS31: 0 | FT31: 0.7852517642 | FU31: 1.701484932 | FV31: 2.518060181 | FW31: 3.004338191
C32: 19 | D32: 0 | E32: 0.03138950893 | F32: 0.06277901786 | G32: 0.09416852679 | H32: 0.1255580357 | I32: 0.1569475446 | J32: 0.1883370536 | K32: 0.2197265625 | L32: 0.2511160714 | M32: 0.2511160714 | N32: 0.1150948661 | O32: -0.02092633929 | P32: -0.1569475446 | Q32: -0.29296875 | R32: 0.02511160714 | S32: -0.07254464286 | T32: -0.07254464286 | U32: 0.02511160714 | V32: -0.09765625 | AN32: 0 | AO32: 0.02511160714 | AP32: 0.02511160714 | AQ32: 0.02511160714 | AR32: 0.02511160714 | AS32: -0.07254464286 | AT32: 0.07254464286 | AU32: -0.02511160714 | AV32: -0.02511160714 | AW32: 0 | BC32: 14 | BE32: 0.75 | BF32: =-(Input!$B$1^2)/(12*(1/3+Input!$B$1/2))*(3*BE32-3*BE32^2) -> -0.09735576923 | BG32: =-(Input!$B$1^2)/(12*(1/3+Input!$B$1/6))*(BE32-3*BE32^2+2*BE32^3) -> 0.03013392857 | BI32: -0.06722184066 | BK32: 0.25 | BL32: =+BK32-BF32-(1+2/Input!$B$1)*BG32 -> 0.2770432692 | BN32: -0.06722184066 | BO32: 0.25 | BP32: =+BO32-2*BG32/Input!$B$1 -> 0.2098214286 | BQ32: -0.7901785714 | BT32: 0.01622596154 | BU32: -0.005022321429 | BV32: 0.01120364011 | BY32: -0.03245192308 | BZ32: 0.01004464286 | CA32: -0.02240728022 | CC32: =-(1-BE32)*(1-(1-BE32)^2)/6*Input!$B$1^2 -> -0.087890625 | CD32: =-BF32/2*Input!$B$1 -> 0.07301682692 | CE32: =-BG32/6*Input!$B$1 -> -0.007533482143 | CF32: -0.02240728022 | CW32: 0 | CX32: =+IF($BE32<=CX$3,CX$5/CX$3*$BE32,CX$5-CX$5/(1-CX$3)*($BE32-CX$3))*Input!$B$1 -> 0.046875 | CY32: =+IF($BE32<=CY$3,CY$5/CY$3*$BE32,CY$5-CY$5/(1-CY$3)*($BE32-CY$3))*Input!$B$1 -> 0.09375 | CZ32: =+IF($BE32<=CZ$3,CZ$5/CZ$3*$BE32,CZ$5-CZ$5/(1-CZ$3)*($BE32-CZ$3))*Input!$B$1 -> 0.140625 | DA32: =+IF($BE32<=DA$3,DA$5/DA$3*$BE32,DA$5-DA$5/(1-DA$3)*($BE32-DA$3))*Input!$B$1 -> 0.1875 | DB32: 0 | DC32: -0.008402730082 | DD32: -0.01680546016 | DE32: -0.02520819025 | DF32: -0.03361092033 | DG32: -0.04201365041 | DH32: -0.05041638049 | DI32: -0.05881911058 | DJ32: -0.06722184066 | DK32: -0.06722184066 | DL32: -0.0278803228 | DM32: 0.01146119505 | DN32: 0.05080271291 | DO32: 0.09014423077 | DQ32: 0 | DR32: -0.08402730082 | DS32: -0.1680546016 | DT32: -0.2520819025 | DU32: -0.3361092033 | DV32: -0.4201365041 | DW32: -0.5041638049 | DX32: -0.5881911058 | DY32: -0.6722184066 | DZ32: -0.6722184066 | EA32: -0.278803228 | EB32: 0.1146119505 | EC32: 0.5080271291 | ED32: 0.9014423077 | EO32: =+IF($BE32<=CW$3,1/6*(1-CW$3)*$BE32*(1-(1-CW$3)^2-$BE32^2),1/6*CW$3*(1-$BE32)*(1-CW$3^2-(1-$BE32)^2))*Input!$B$1^3 -> 0 | EP32: =+IF($BE32<=CX$3,1/6*(1-CX$3)*$BE32*(1-(1-CX$3)^2-$BE32^2),1/6*CX$3*(1-$BE32)*(1-CX$3^2-(1-$BE32)^2))*Input!$B$1^3 -> 0.01620483398 | EQ32: =+IF($BE32<=CY$3,1/6*(1-CY$3)*$BE32*(1-(1-CY$3)^2-$BE32^2),1/6*CY$3*(1-$BE32)*(1-CY$3^2-(1-$BE32)^2))*Input!$B$1^3 -> 0.03076171875 | ER32: =+IF($BE32<=CZ$3,1/6*(1-CZ$3)*$BE32*(1-(1-CZ$3)^2-$BE32^2),1/6*CZ$3*(1-$BE32)*(1-CZ$3^2-(1-$BE32)^2))*Input!$B$1^3 -> 0.04202270508 | ES32: =+IF($BE32<=DA$3,1/6*(1-DA$3)*$BE32*(1-(1-DA$3)^2-$BE32^2),1/6*DA$3*(1-$BE32)*(1-DA$3^2-(1-$BE32)^2))*Input!$B$1^3 -> 0.04833984375 | EU32: 0 | EV32: -0.001378572904 | EW32: -0.002625853151 | EX32: -0.003610548082 | EY32: -0.004201365041 | EZ32: -0.00426701137 | FA32: -0.003676194411 | FB32: -0.002297621507 | FC32: 0 | FD32: 0 | FE32: 0.005152482253 | FF32: 0.0112851321 | FG32: 0.01701484932 | FH32: 0.02095853365 | FJ32: 0 | FK32: -0.1378572904 | FL32: -0.2625853151 | FM32: -0.3610548082 | FN32: -0.4201365041 | FO32: -0.426701137 | FP32: -0.3676194411 | FQ32: -0.2297621507 | FR32: 0 | FS32: 0 | FT32: 0.5152482253 | FU32: 1.12851321 | FV32: 1.701484932 | FW32: 2.095853365
C33: 20 | D33: 0 | E33: 0.03090659341 | F33: 0.06181318681 | G33: 0.09271978022 | H33: 0.1236263736 | I33: 0.154532967 | J33: 0.1854395604 | K33: 0.2163461538 | L33: 0.2472527473 | M33: 0.2472527473 | N33: 0.1133241758 | O33: -0.0206043956 | P33: -0.154532967 | Q33: -0.2884615385 | R33: 0.02472527473 | S33: -0.07142857143 | T33: -0.07142857143 | U33: 0.02472527473 | V33: -0.09615384615 | AN33: 0 | AO33: 0.02472527473 | AP33: 0.02472527473 | AQ33: 0.02472527473 | AR33: 0.02472527473 | AS33: -0.07142857143 | AT33: 0.07142857143 | AU33: -0.02472527473 | AV33: -0.02472527473 | AW33: 0 | BC33: 15 | BE33: 0.875 | BF33: =-(Input!$B$1^2)/(12*(1/3+Input!$B$1/2))*(3*BE33-3*BE33^2) -> -0.05679086538 | BG33: =-(Input!$B$1^2)/(12*(1/3+Input!$B$1/6))*(BE33-3*BE33^2+2*BE33^3) -> 0.0263671875 | BI33: -0.03042367788 | BK33: 0.125 | BL33: =+BK33-BF33-(1+2/Input!$B$1)*BG33 -> 0.1202674279 | BN33: -0.03042367788 | BO33: 0.125 | BP33: =+BO33-2*BG33/Input!$B$1 -> 0.08984375 | BQ33: -0.91015625 | BT33: 0.009465144231 | BU33: -0.00439453125 | BV33: 0.005070612981 | BY33: -0.01893028846 | BZ33: 0.0087890625 | CA33: -0.01014122596 | CC33: =-(1-BE33)*(1-(1-BE33)^2)/6*Input!$B$1^2 -> -0.04614257812 | CD33: =-BF33/2*Input!$B$1 -> 0.04259314904 | CE33: =-BG33/6*Input!$B$1 -> -0.006591796875 | CF33: -0.01014122596 | CW33: 0 | CX33: =+IF($BE33<=CX$3,CX$5/CX$3*$BE33,CX$5-CX$5/(1-CX$3)*($BE33-CX$3))*Input!$B$1 -> 0.0234375 | CY33: =+IF($BE33<=CY$3,CY$5/CY$3*$BE33,CY$5-CY$5/(1-CY$3)*($BE33-CY$3))*Input!$B$1 -> 0.046875 | CZ33: =+IF($BE33<=CZ$3,CZ$5/CZ$3*$BE33,CZ$5-CZ$5/(1-CZ$3)*($BE33-CZ$3))*Input!$B$1 -> 0.0703125 | DA33: =+IF($BE33<=DA$3,DA$5/DA$3*$BE33,DA$5-DA$5/(1-DA$3)*($BE33-DA$3))*Input!$B$1 -> 0.09375 | DB33: 0 | DC33: -0.003802959736 | DD33: -0.007605919471 | DE33: -0.01140887921 | DF33: -0.01521183894 | DG33: -0.01901479868 | DH33: -0.02281775841 | DI33: -0.02662071815 | DJ33: -0.03042367788 | DK33: -0.03042367788 | DL33: -0.01357797476 | DM33: 0.003267728365 | DN33: 0.02011343149 | DO33: 0.03695913462 | DQ33: 0 | DR33: -0.03802959736 | DS33: -0.07605919471 | DT33: -0.1140887921 | DU33: -0.1521183894 | DV33: -0.1901479868 | DW33: -0.2281775841 | DX33: -0.2662071815 | DY33: -0.3042367788 | DZ33: -0.3042367788 | EA33: -0.1357797476 | EB33: 0.03267728365 | EC33: 0.2011343149 | ED33: 0.3695913462 | EO33: =+IF($BE33<=CW$3,1/6*(1-CW$3)*$BE33*(1-(1-CW$3)^2-$BE33^2),1/6*CW$3*(1-$BE33)*(1-CW$3^2-(1-$BE33)^2))*Input!$B$1^3 -> 0 | EP33: =+IF($BE33<=CX$3,1/6*(1-CX$3)*$BE33*(1-(1-CX$3)^2-$BE33^2),1/6*CX$3*(1-$BE33)*(1-CX$3^2-(1-$BE33)^2))*Input!$B$1^3 -> 0.008514404297 | EQ33: =+IF($BE33<=CY$3,1/6*(1-CY$3)*$BE33*(1-(1-CY$3)^2-$BE33^2),1/6*CY$3*(1-$BE33)*(1-CY$3^2-(1-$BE33)^2))*Input!$B$1^3 -> 0.01620483398 | ER33: =+IF($BE33<=CZ$3,1/6*(1-CZ$3)*$BE33*(1-(1-CZ$3)^2-$BE33^2),1/6*CZ$3*(1-$BE33)*(1-CZ$3^2-(1-$BE33)^2))*Input!$B$1^3 -> 0.02224731445 | ES33: =+IF($BE33<=DA$3,1/6*(1-DA$3)*$BE33*(1-(1-DA$3)^2-$BE33^2),1/6*DA$3*(1-$BE33)*(1-DA$3^2-(1-$BE33)^2))*Input!$B$1^3 -> 0.02581787109 | EU33: 0 | EV33: =+EG33+CO$8*$BF33+CO$9*$BG33 -> -0.0006239230816 | EW33: =+EH33+CP$8*$BF33+CP$9*$BG33 -> -0.001188424917 | EX33: =+EI33+CQ$8*$BF33+CQ$9*$BG33 -> -0.001634084261 | EY33: =+EJ33+CR$8*$BF33+CR$9*$BG33 -> -0.001901479868 | EZ33: =+EK33+CS$8*$BF33+CS$9*$BG33 -> -0.001931190491 | FA33: =+EL33+CT$8*$BF33+CT$9*$BG33 -> -0.001663794884 | FB33: =+EM33+CU$8*$BF33+CU$9*$BG33 -> -0.001039871803 | FC33: =+EN33+CV$8*$BF33+CV$9*$BG33 -> 0 | FD33: =+EO33+CW$8*$BF33+CW$9*$BG33 -> 0 | FE33: =+EP33+CX$8*$BF33+CX$9*$BG33 -> 0.002337565789 | FF33: =+EQ33+CY$8*$BF33+CY$9*$BG33 -> 0.005152482253 | FG33: =+ER33+CZ$8*$BF33+CZ$9*$BG33 -> 0.007852517642 | FH33: =+ES33+DA$8*$BF33+DA$9*$BG33 -> 0.009845440204 | FJ33: 0 | FK33: -0.06239230816 | FL33: -0.1188424917 | FM33: -0.1634084261 | FN33: -0.1901479868 | FO33: -0.1931190491 | FP33: -0.1663794884 | FQ33: -0.1039871803 | FR33: 0 | FS33: 0 | FT33: 0.2337565789 | FU33: 0.5152482253 | FV33: 0.7852517642 | FW33: 0.9845440204
C34: 21 | D34: 0 | E34: 0.02656035371 | F34: 0.05312070742 | G34: 0.07968106113 | H34: 0.1062414148 | I34: 0.1328017685 | J34: 0.1593621223 | K34: 0.185922476 | L34: 0.2124828297 | M34: 0.2124828297 | N34: 0.0973879636 | O34: -0.01770690247 | P34: -0.1328017685 | Q34: -0.2478966346 | R34: 0.02124828297 | S34: -0.06138392857 | T34: -0.06138392857 | U34: 0.02124828297 | V34: -0.08263221154 | AN34: 0 | AO34: 0.02124828297 | AP34: 0.02124828297 | AQ34: 0.02124828297 | AR34: 0.02124828297 | AS34: -0.06138392857 | AT34: 0.06138392857 | AU34: -0.02124828297 | AV34: -0.02124828297 | AW34: 0 | BC34: 16 | BE34: 1 | BF34: =-(Input!$B$1^2)/(12*(1/3+Input!$B$1/2))*(3*BE34-3*BE34^2) -> 0 | BG34: =-(Input!$B$1^2)/(12*(1/3+Input!$B$1/6))*(BE34-3*BE34^2+2*BE34^3) -> 0 | BI34: 0 | BK34: 0 | BL34: =+BK34-BF34-(1+2/Input!$B$1)*BG34 -> 0 | BN34: 0 | BO34: 0 | BP34: =+BO34-2*BG34/Input!$B$1 -> 0 | BQ34: -1 | BT34: 0 | BU34: 0 | BV34: 0 | BY34: 0 | BZ34: 0 | CA34: 0 | CC34: =-(1-BE34)*(1-(1-BE34)^2)/6*Input!$B$1^2 -> 0 | CD34: =-BF34/2*Input!$B$1 -> 0 | CE34: =-BG34/6*Input!$B$1 -> 0 | CF34: 0 | CW34: 0 | CX34: =+IF($BE34<=CX$3,CX$5/CX$3*$BE34,CX$5-CX$5/(1-CX$3)*($BE34-CX$3))*Input!$B$1 -> 0 | CY34: =+IF($BE34<=CY$3,CY$5/CY$3*$BE34,CY$5-CY$5/(1-CY$3)*($BE34-CY$3))*Input!$B$1 -> 0 | CZ34: =+IF($BE34<=CZ$3,CZ$5/CZ$3*$BE34,CZ$5-CZ$5/(1-CZ$3)*($BE34-CZ$3))*Input!$B$1 -> 0 | DA34: =+IF($BE34<=DA$3,DA$5/DA$3*$BE34,DA$5-DA$5/(1-DA$3)*($BE34-DA$3))*Input!$B$1 -> 0 | DB34: 0 | DC34: 0 | DD34: 0 | DE34: 0 | DF34: 0 | DG34: 0 | DH34: 0 | DI34: 0 | DJ34: 0 | DK34: 0 | DL34: 0 | DM34: 0 | DN34: 0 | DO34: 0 | DQ34: 0 | DR34: 0 | DS34: 0 | DT34: 0 | DU34: 0 | DV34: 0 | DW34: 0 | DX34: 0 | DY34: 0 | DZ34: 0 | EA34: 0 | EB34: 0 | EC34: 0 | ED34: 0 | EO34: =+IF($BE34<=CW$3,1/6*(1-CW$3)*$BE34*(1-(1-CW$3)^2-$BE34^2),1/6*CW$3*(1-$BE34)*(1-CW$3^2-(1-$BE34)^2))*Input!$B$1^3 -> 0 | EP34: =+IF($BE34<=CX$3,1/6*(1-CX$3)*$BE34*(1-(1-CX$3)^2-$BE34^2),1/6*CX$3*(1-$BE34)*(1-CX$3^2-(1-$BE34)^2))*Input!$B$1^3 -> 0 | EQ34: =+IF($BE34<=CY$3,1/6*(1-CY$3)*$BE34*(1-(1-CY$3)^2-$BE34^2),1/6*CY$3*(1-$BE34)*(1-CY$3^2-(1-$BE34)^2))*Input!$B$1^3 -> 0 | ER34: =+IF($BE34<=CZ$3,1/6*(1-CZ$3)*$BE34*(1-(1-CZ$3)^2-$BE34^2),1/6*CZ$3*(1-$BE34)*(1-CZ$3^2-(1-$BE34)^2))*Input!$B$1^3 -> 0 | ES34: =+IF($BE34<=DA$3,1/6*(1-DA$3)*$BE34*(1-(1-DA$3)^2-$BE34^2),1/6*DA$3*(1-$BE34)*(1-DA$3^2-(1-$BE34)^2))*Input!$B$1^3 -> 0 | EU34: 0 | EV34: 0 | EW34: 0 | EX34: 0 | EY34: 0 | EZ34: 0 | FA34: 0 | FB34: 0 | FC34: 0 | FD34: 0 | FE34: 0 | FF34: 0 | FG34: 0 | FH34: 0 | FJ34: 0 | FK34: 0 | FL34: 0 | FM34: 0 | FN34: 0 | FO34: 0 | FP34: 0 | FQ34: 0 | FR34: 0 | FS34: 0 | FT34: 0 | FU34: 0 | FV34: 0 | FW34: 0
C35: 22 | D35: 0 | E35: 0.01931662088 | F35: 0.03863324176 | G35: 0.05794986264 | H35: 0.07726648352 | I35: 0.0965831044 | J35: 0.1158997253 | K35: 0.1352163462 | L35: 0.154532967 | M35: 0.154532967 | N35: 0.07082760989 | O35: -0.01287774725 | P35: -0.0965831044 | Q35: -0.1802884615 | R35: 0.0154532967 | S35: -0.04464285714 | T35: -0.04464285714 | U35: 0.0154532967 | V35: -0.06009615385 | AN35: 0 | AO35: 0.0154532967 | AP35: 0.0154532967 | AQ35: 0.0154532967 | AR35: 0.0154532967 | AS35: -0.04464285714 | AT35: 0.04464285714 | AU35: -0.0154532967 | AV35: -0.0154532967 | AW35: 0 | BC35: =+BC34 -> 16 | BD35: 3 | BE35: 0 | BF35: =-1/(12*(1/3+Input!$B$1/2))*(2*BE35-3*BE35^2+BE35^3) -> 0 | BG35: =-1/(12*(1/3+Input!$B$1/6))*(2*BE35-3*BE35^2+BE35^3) -> 0 | BI35: 0 | BL35: =+BK35-BF35-(1+2/Input!$B$1)*BG35 -> 0 | BN35: 0 | BP35: =+BO35-2*BG35/Input!$B$1 -> 0 | BT35: 0 | BU35: 0 | BV35: 0 | BY35: 0 | BZ35: 0 | CA35: 0 | CD35: =-BF35/2*Input!$B$1 -> 0 | CE35: =-BG35/6*Input!$B$1 -> 0 | CF35: 0 | DB35: 0 | DC35: 0 | DD35: 0 | DE35: 0 | DF35: 0 | DG35: 0 | DH35: 0 | DI35: 0 | DJ35: 0 | DK35: 0 | DL35: 0 | DM35: 0 | DN35: 0 | DO35: 0 | DQ35: 0 | DR35: 0 | DS35: 0 | DT35: 0 | DU35: 0 | DV35: 0 | DW35: 0 | DX35: 0 | DY35: 0 | DZ35: 0 | EA35: 0 | EB35: 0 | EC35: 0 | ED35: 0 | EU35: 0 | EV35: 0 | EW35: 0 | EX35: 0 | EY35: 0 | EZ35: 0 | FA35: 0 | FB35: 0 | FC35: 0 | FD35: 0 | FE35: 0 | FF35: 0 | FG35: 0 | FH35: 0 | FJ35: 0 | FK35: 0 | FL35: 0 | FM35: 0 | FN35: 0 | FO35: 0 | FP35: 0 | FQ35: 0 | FR35: 0 | FS35: 0 | FT35: 0 | FU35: 0 | FV35: 0 | FW35: 0
C36: 23 | D36: 0 | E36: 0.01014122596 | F36: 0.02028245192 | G36: 0.03042367788 | H36: 0.04056490385 | I36: 0.05070612981 | J36: 0.06084735577 | K36: 0.07098858173 | L36: 0.08112980769 | M36: 0.08112980769 | N36: 0.03718449519 | O36: -0.006760817308 | P36: -0.05070612981 | Q36: -0.09465144231 | R36: 0.008112980769 | S36: -0.0234375 | T36: -0.0234375 | U36: 0.008112980769 | V36: -0.03155048077 | AN36: 0 | AO36: 0.008112980769 | AP36: 0.008112980769 | AQ36: 0.008112980769 | AR36: 0.008112980769 | AS36: -0.0234375 | AT36: 0.0234375 | AU36: -0.008112980769 | AV36: -0.008112980769 | AW36: 0 | BC36: =+BC35+1 -> 17 | BE36: =+BE35+1/8 -> 0.125 | BF36: =-1/(12*(1/3+Input!$B$1/2))*(2*BE36-3*BE36^2+BE36^3) -> -0.01577524038 | BG36: =1/(12*(1/3+Input!$B$1/6))*(2*BE36-3*BE36^2+BE36^3) -> 0.029296875 | BI36: 0.01352163462 | BL36: =+BK36-BF36-(1+2/Input!$B$1)*BG36 -> -0.05258413462 | BN36: 0.01352163462 | BP36: =+BO36-2*BG36/Input!$B$1 -> -0.0390625 | BT36: 0.002629206731 | BU36: -0.0048828125 | BV36: -0.002253605769 | BY36: -0.005258413462 | BZ36: 0.009765625 | CA36: 0.004507211538 | CD36: =-BF36/2*Input!$B$1 -> 0.01183143029 | CE36: =-BG36/6*Input!$B$1 -> -0.00732421875 | CF36: 0.004507211538 | DB36: 0 | DC36: 0.001690204327 | DD36: 0.003380408654 | DE36: 0.005070612981 | DF36: 0.006760817308 | DG36: 0.008451021635 | DH36: 0.01014122596 | DI36: 0.01183143029 | DJ36: 0.01352163462 | DK36: 0.01352163462 | DL36: 0.006197415865 | DM36: -0.001126802885 | DN36: -0.008451021635 | DO36: -0.01577524038 | DQ36: 0 | DR36: 0.01690204327 | DS36: 0.03380408654 | DT36: 0.05070612981 | DU36: 0.06760817308 | DV36: 0.08451021635 | DW36: 0.1014122596 | DX36: 0.1183143029 | DY36: 0.1352163462 | DZ36: 0.1352163462 | EA36: 0.06197415865 | EB36: -0.01126802885 | EC36: -0.08451021635 | ED36: -0.1577524038 | EU36: 0 | EV36: 0.0002772991474 | EW36: 0.0005281888522 | EX36: 0.0007262596717 | EY36: 0.0008451021635 | EZ36: 0.0008583068848 | FA36: 0.000739464393 | FB36: 0.0004621652456 | FC36: 0 | FD36: 0 | FE36: -0.001039871803 | FF36: -0.002297621507 | FG36: -0.003515757047 | FH36: -0.004436786358 | FJ36: 0 | FK36: 0.02772991474 | FL36: 0.05281888522 | FM36: 0.07262596717 | FN36: 0.08451021635 | FO36: 0.08583068848 | FP36: 0.0739464393 | FQ36: 0.04621652456 | FR36: 0 | FS36: 0 | FT36: -0.1039871803 | FU36: -0.2297621507 | FV36: -0.3515757047 | FW36: -0.4436786358
C37: 24 | D37: 0 | E37: 0 | F37: 0 | G37: 0 | H37: 0 | I37: 0 | J37: 0 | K37: 0 | L37: 0 | M37: 0 | N37: 0 | O37: 0 | P37: 0 | Q37: 0 | R37: 0 | S37: 0 | T37: 0 | U37: 0 | V37: 0 | BC37: =+BC36+1 -> 18 | BE37: =+BE36+1/8 -> 0.25 | BF37: =-1/(12*(1/3+Input!$B$1/2))*(2*BE37-3*BE37^2+BE37^3) -> -0.02524038462 | BG37: =1/(12*(1/3+Input!$B$1/6))*(2*BE37-3*BE37^2+BE37^3) -> 0.046875 | BI37: 0.02163461538 | BL37: =+BK37-BF37-(1+2/Input!$B$1)*BG37 -> -0.08413461538 | BN37: 0.02163461538 | BP37: =+BO37-2*BG37/Input!$B$1 -> -0.0625 | BT37: 0.004206730769 | BU37: -0.0078125 | BV37: -0.003605769231 | BY37: -0.008413461538 | BZ37: 0.015625 | CA37: 0.007211538462 | CD37: =-BF37/2*Input!$B$1 -> 0.01893028846 | CE37: =-BG37/6*Input!$B$1 -> -0.01171875 | CF37: 0.007211538462 | DB37: 0 | DC37: 0.002704326923 | DD37: 0.005408653846 | DE37: 0.008112980769 | DF37: 0.01081730769 | DG37: 0.01352163462 | DH37: 0.01622596154 | DI37: 0.01893028846 | DJ37: 0.02163461538 | DK37: 0.02163461538 | DL37: 0.009915865385 | DM37: -0.001802884615 | DN37: -0.01352163462 | DO37: -0.02524038462 | DQ37: 0 | DR37: 0.02704326923 | DS37: 0.05408653846 | DT37: 0.08112980769 | DU37: 0.1081730769 | DV37: 0.1352163462 | DW37: 0.1622596154 | DX37: 0.1893028846 | DY37: 0.2163461538 | DZ37: 0.2163461538 | EA37: 0.09915865385 | EB37: -0.01802884615 | EC37: -0.1352163462 | ED37: -0.2524038462 | EU37: 0 | EV37: 0.0004436786358 | EW37: 0.0008451021635 | EX37: 0.001162015475 | EY37: 0.001352163462 | EZ37: 0.001373291016 | FA37: 0.001183143029 | FB37: 0.000739464393 | FC37: 0 | FD37: 0 | FE37: -0.001663794884 | FF37: -0.003676194411 | FG37: -0.005625211276 | FH37: -0.007098858173 | FJ37: 0 | FK37: 0.04436786358 | FL37: 0.08451021635 | FM37: 0.1162015475 | FN37: 0.1352163462 | FO37: 0.1373291016 | FP37: 0.1183143029 | FQ37: 0.0739464393 | FR37: 0 | FS37: 0 | FT37: -0.1663794884 | FU37: -0.3676194411 | FV37: -0.5625211276 | FW37: -0.7098858173
D38: ×L1/10 | R38: ×1 | BC38: 19 | BE38: 0.375 | BF38: =-1/(12*(1/3+Input!$B$1/2))*(2*BE38-3*BE38^2+BE38^3) -> -0.029296875 | BG38: =1/(12*(1/3+Input!$B$1/6))*(2*BE38-3*BE38^2+BE38^3) -> 0.05440848214 | BI38: 0.02511160714 | BL38: =+BK38-BF38-(1+2/Input!$B$1)*BG38 -> -0.09765625 | BN38: 0.02511160714 | BP38: =+BO38-2*BG38/Input!$B$1 -> -0.07254464286 | BT38: 0.0048828125 | BU38: -0.009068080357 | BV38: -0.004185267857 | BY38: -0.009765625 | BZ38: 0.01813616071 | CA38: 0.008370535714 | CD38: =-BF38/2*Input!$B$1 -> 0.02197265625 | CE38: =-BG38/6*Input!$B$1 -> -0.01360212054 | CF38: 0.008370535714 | DB38: 0 | DC38: 0.003138950893 | DD38: 0.006277901786 | DE38: 0.009416852679 | DF38: 0.01255580357 | DG38: 0.01569475446 | DH38: 0.01883370536 | DI38: 0.02197265625 | DJ38: 0.02511160714 | DK38: 0.02511160714 | DL38: 0.01150948661 | DM38: -0.002092633929 | DN38: -0.01569475446 | DO38: -0.029296875 | DQ38: 0 | DR38: 0.03138950893 | DS38: 0.06277901786 | DT38: 0.09416852679 | DU38: 0.1255580357 | DV38: 0.1569475446 | DW38: 0.1883370536 | DX38: 0.2197265625 | DY38: 0.2511160714 | DZ38: 0.2511160714 | EA38: 0.1150948661 | EB38: -0.02092633929 | EC38: -0.1569475446 | ED38: -0.29296875 | EU38: 0 | EV38: 0.0005149841309 | EW38: 0.000980922154 | EX38: 0.001348767962 | EY38: 0.001569475446 | EZ38: 0.0015939985 | FA38: 0.001373291016 | FB38: 0.0008583068848 | FC38: 0 | FD38: 0 | FE38: -0.001931190491 | FF38: -0.00426701137 | FG38: -0.006529263088 | FH38: -0.008239746094 | FJ38: 0 | FK38: 0.05149841309 | FL38: 0.0980922154 | FM38: 0.1348767962 | FN38: 0.1569475446 | FO38: 0.15939985 | FP38: 0.1373291016 | FQ38: 0.08583068848 | FR38: 0 | FS38: 0 | FT38: -0.1931190491 | FU38: -0.426701137 | FV38: -0.6529263088 | FW38: -0.8239746094
C39: Span 1 | D39: =+DQ47 -> 0 | E39: 0.4781936813 | F39: 0.8001373626 | G39: 0.965831044 | H39: 0.9752747253 | I39: 0.8284684066 | J39: 0.5254120879 | K39: 0.06610576923 | L39: -0.5494505495 | M39: -0.5494505495 | N39: -0.4601648352 | O39: -0.3708791209 | P39: -0.2815934066 | Q39: -0.1923076923 | R39: =+BN47 -> -0.5549450549 | S39: =+BP47 -> 0.04761904762 | T39: =+S39 -> 0.04761904762 | U39: =+BI47 -> 0.4450549451 | V39: =+BL47 -> 0.6025641026 | AN39: 0 | AO39: =+U39 -> 0.4450549451 | AP39: =+R39 -> -0.5549450549 | AQ39: 0.04761904762 | AR39: =+S39 -> 0.04761904762 | AS39: =-R39 -> 0.5549450549 | AT39: =-R39 -> 0.5549450549 | AU39: 0 | BC39: 20 | BE39: 0.5 | BF39: =-1/(12*(1/3+Input!$B$1/2))*(2*BE39-3*BE39^2+BE39^3) -> -0.02884615385 | BG39: =1/(12*(1/3+Input!$B$1/6))*(2*BE39-3*BE39^2+BE39^3) -> 0.05357142857 | BI39: 0.02472527473 | BL39: =+BK39-BF39-(1+2/Input!$B$1)*BG39 -> -0.09615384615 | BN39: 0.02472527473 | BP39: =+BO39-2*BG39/Input!$B$1 -> -0.07142857143 | BT39: 0.004807692308 | BU39: -0.008928571429 | BV39: -0.004120879121 | BY39: -0.009615384615 | BZ39: 0.01785714286 | CA39: 0.008241758242 | CD39: =-BF39/2*Input!$B$1 -> 0.02163461538 | CE39: =-BG39/6*Input!$B$1 -> -0.01339285714 | CF39: 0.008241758242 | DB39: 0 | DC39: 0.003090659341 | DD39: 0.006181318681 | DE39: 0.009271978022 | DF39: 0.01236263736 | DG39: 0.0154532967 | DH39: 0.01854395604 | DI39: 0.02163461538 | DJ39: 0.02472527473 | DK39: 0.02472527473 | DL39: 0.01133241758 | DM39: -0.00206043956 | DN39: -0.0154532967 | DO39: -0.02884615385 | DQ39: 0 | DR39: 0.03090659341 | DS39: 0.06181318681 | DT39: 0.09271978022 | DU39: 0.1236263736 | DV39: 0.154532967 | DW39: 0.1854395604 | DX39: 0.2163461538 | DY39: 0.2472527473 | DZ39: 0.2472527473 | EA39: 0.1133241758 | EB39: -0.0206043956 | EC39: -0.154532967 | ED39: -0.2884615385 | EU39: 0 | EV39: 0.0005070612981 | EW39: 0.000965831044 | EX39: 0.001328017685 | EY39: 0.00154532967 | EZ39: 0.001569475446 | FA39: 0.001352163462 | FB39: 0.0008451021635 | FC39: 0 | FD39: 0 | FE39: -0.001901479868 | FF39: -0.004201365041 | FG39: -0.006428812886 | FH39: -0.008112980769 | FJ39: 0 | FK39: 0.05070612981 | FL39: 0.0965831044 | FM39: 0.1328017685 | FN39: 0.154532967 | FO39: 0.1569475446 | FP39: 0.1352163462 | FQ39: 0.08451021635 | FR39: 0 | FS39: 0 | FT39: -0.1901479868 | FU39: -0.4201365041 | FV39: -0.6428812886 | FW39: -0.8112980769
C40: Span 2 | D40: 0 | E40: -0.1622596154 | F40: -0.3245192308 | G40: -0.4867788462 | H40: -0.6490384615 | I40: -0.8112980769 | J40: -0.9735576923 | K40: -1.135817308 | L40: -1.298076923 | M40: -1.298076923 | N40: -0.06760817308 | O40: 0.8112980769 | P40: 1.338641827 | Q40: 1.514423077 | R40: =+BN48 -> -0.1298076923 | S40: =+BP48 -> 0.75 | T40: =-S40 -> -0.75 | U40: =+BI48 -> -0.1298076923 | V40: =+BL48 -> 0.8798076923 | AN40: 0 | AO40: =+U40 -> -0.1298076923 | AP40: -0.1298076923 | AQ40: 0.75 | AR40: =-S40 -> -0.75 | AS40: =-R40 -> 0.1298076923 | AT40: =-R40 -> 0.1298076923 | AU40: 0 | BC40: 21 | BE40: 0.625 | BF40: =-1/(12*(1/3+Input!$B$1/2))*(2*BE40-3*BE40^2+BE40^3) -> -0.02478966346 | BG40: =1/(12*(1/3+Input!$B$1/6))*(2*BE40-3*BE40^2+BE40^3) -> 0.04603794643 | BI40: 0.02124828297 | BL40: =+BK40-BF40-(1+2/Input!$B$1)*BG40 -> -0.08263221154 | BN40: 0.02124828297 | BP40: =+BO40-2*BG40/Input!$B$1 -> -0.06138392857 | BT40: 0.004131610577 | BU40: -0.007672991071 | BV40: -0.003541380495 | BY40: -0.008263221154 | BZ40: 0.01534598214 | CA40: 0.007082760989 | CD40: =-BF40/2*Input!$B$1 -> 0.0185922476 | CE40: =-BG40/6*Input!$B$1 -> -0.01150948661 | CF40: 0.007082760989 | DB40: 0 | DC40: 0.002656035371 | DD40: 0.005312070742 | DE40: 0.007968106113 | DF40: 0.01062414148 | DG40: 0.01328017685 | DH40: 0.01593621223 | DI40: 0.0185922476 | DJ40: 0.02124828297 | DK40: 0.02124828297 | DL40: 0.00973879636 | DM40: -0.001770690247 | DN40: -0.01328017685 | DO40: -0.02478966346 | DQ40: 0 | DR40: 0.02656035371 | DS40: 0.05312070742 | DT40: 0.07968106113 | DU40: 0.1062414148 | DV40: 0.1328017685 | DW40: 0.1593621223 | DX40: 0.185922476 | DY40: 0.2124828297 | DZ40: 0.2124828297 | EA40: 0.0973879636 | EB40: -0.01770690247 | EC40: -0.1328017685 | ED40: -0.2478966346 | EU40: 0 | EV40: 0.000435755803 | EW40: 0.0008300110534 | EX40: 0.001141265198 | EY40: 0.001328017685 | EZ40: 0.001348767962 | FA40: 0.001162015475 | FB40: 0.0007262596717 | FC40: 0 | FD40: 0 | FE40: -0.001634084261 | FF40: -0.003610548082 | FG40: -0.005524761074 | FH40: -0.006972092849 | FJ40: 0 | FK40: 0.0435755803 | FL40: 0.08300110534 | FM40: 0.1141265198 | FN40: 0.1328017685 | FO40: 0.1348767962 | FP40: 0.1162015475 | FQ40: 0.07262596717 | FR40: 0 | FS40: 0 | FT40: -0.1634084261 | FU40: -0.3610548082 | FV40: -0.5524761074 | FW40: -0.6972092849
C41: Span 3 | D41: 0 | E41: 0.0206043956 | F41: 0.04120879121 | G41: 0.06181318681 | H41: 0.08241758242 | I41: 0.103021978 | J41: 0.1236263736 | K41: 0.1442307692 | L41: 0.1648351648 | M41: 0.1648351648 | N41: 0.07554945055 | O41: -0.01373626374 | P41: -0.103021978 | Q41: -0.1923076923 | R41: =+BN49 -> 0.01648351648 | S41: =+BP49 -> -0.04761904762 | T41: =+S41 -> -0.04761904762 | U41: =+BI49 -> 0.01648351648 | V41: =+BL49 -> -0.0641025641 | AN41: 0 | AO41: =+U41 -> 0.01648351648 | AP41: 0.01648351648 | AQ41: -0.04761904762 | AR41: =+S41 -> -0.04761904762 | AS41: =-R41 -> -0.01648351648 | AT41: =-R41 -> -0.01648351648 | AU41: 0 | BC41: 22 | BE41: 0.75 | BF41: =-1/(12*(1/3+Input!$B$1/2))*(2*BE41-3*BE41^2+BE41^3) -> -0.01802884615 | BG41: =1/(12*(1/3+Input!$B$1/6))*(2*BE41-3*BE41^2+BE41^3) -> 0.03348214286 | BI41: 0.0154532967 | BL41: =+BK41-BF41-(1+2/Input!$B$1)*BG41 -> -0.06009615385 | BN41: 0.0154532967 | BP41: =+BO41-2*BG41/Input!$B$1 -> -0.04464285714 | BT41: 0.003004807692 | BU41: -0.005580357143 | BV41: -0.002575549451 | BY41: -0.006009615385 | BZ41: 0.01116071429 | CA41: 0.005151098901 | CD41: =-BF41/2*Input!$B$1 -> 0.01352163462 | CE41: =-BG41/6*Input!$B$1 -> -0.008370535714 | CF41: 0.005151098901 | DB41: 0 | DC41: 0.001931662088 | DD41: 0.003863324176 | DE41: 0.005794986264 | DF41: 0.007726648352 | DG41: 0.00965831044 | DH41: 0.01158997253 | DI41: 0.01352163462 | DJ41: 0.0154532967 | DK41: 0.0154532967 | DL41: 0.007082760989 | DM41: -0.001287774725 | DN41: -0.00965831044 | DO41: -0.01802884615 | DQ41: 0 | DR41: 0.01931662088 | DS41: 0.03863324176 | DT41: 0.05794986264 | DU41: 0.07726648352 | DV41: 0.0965831044 | DW41: 0.1158997253 | DX41: 0.1352163462 | DY41: 0.154532967 | DZ41: 0.154532967 | EA41: 0.07082760989 | EB41: -0.01287774725 | EC41: -0.0965831044 | ED41: -0.1802884615 | EU41: 0 | EV41: 0.0003169133113 | EW41: 0.0006036444025 | EX41: 0.0008300110534 | EY41: 0.000965831044 | EZ41: 0.000980922154 | FA41: 0.0008451021635 | FB41: 0.0005281888522 | FC41: 0 | FD41: 0 | FE41: -0.001188424917 | FF41: -0.002625853151 | FG41: -0.004018008054 | FH41: -0.005070612981 | FJ41: 0 | FK41: 0.03169133113 | FL41: 0.06036444025 | FM41: 0.08300110534 | FN41: 0.0965831044 | FO41: 0.0980922154 | FP41: 0.08451021635 | FQ41: 0.05281888522 | FR41: 0 | FS41: 0 | FT41: -0.1188424917 | FU41: -0.2625853151 | FV41: -0.4018008054 | FW41: -0.5070612981
C42: Sum | D42: 0 | E42: 0.3365384615 | F42: 0.5168269231 | G42: 0.5408653846 | H42: 0.4086538462 | I42: 0.1201923077 | J42: -0.3245192308 | K42: -0.9254807692 | L42: -1.682692308 | M42: -1.682692308 | N42: -0.4522235577 | O42: 0.4266826923 | P42: 0.9540264423 | Q42: 1.129807692 | R42: =+BN50 -> -0.6682692308 | S42: =+BP50 -> 0.75 | T42: =+T39+T40+T41 -> -0.75 | U42: =+BI50 -> 0.3317307692 | V42: =+BL50 -> 1.418269231 | AN42: 0 | AO42: =+U42 -> 0.3317307692 | AP42: -0.6682692308 | AQ42: 0.75 | AR42: =-S42 -> -0.75 | AS42: =-R42 -> 0.6682692308 | AT42: =-U42 -> -0.3317307692 | AU42: 0 | BC42: 23 | BE42: 0.875 | BF42: =-1/(12*(1/3+Input!$B$1/2))*(2*BE42-3*BE42^2+BE42^3) -> -0.009465144231 | BG42: =1/(12*(1/3+Input!$B$1/6))*(2*BE42-3*BE42^2+BE42^3) -> 0.017578125 | BI42: 0.008112980769 | BL42: =+BK42-BF42-(1+2/Input!$B$1)*BG42 -> -0.03155048077 | BN42: 0.008112980769 | BP42: =+BO42-2*BG42/Input!$B$1 -> -0.0234375 | BT42: 0.001577524038 | BU42: -0.0029296875 | BV42: -0.001352163462 | BY42: -0.003155048077 | BZ42: 0.005859375 | CA42: 0.002704326923 | CD42: =-BF42/2*Input!$B$1 -> 0.007098858173 | CE42: =-BG42/6*Input!$B$1 -> -0.00439453125 | CF42: 0.002704326923 | DB42: 0 | DC42: 0.001014122596 | DD42: 0.002028245192 | DE42: 0.003042367788 | DF42: 0.004056490385 | DG42: 0.005070612981 | DH42: 0.006084735577 | DI42: 0.007098858173 | DJ42: 0.008112980769 | DK42: 0.008112980769 | DL42: 0.003718449519 | DM42: -0.0006760817308 | DN42: -0.005070612981 | DO42: -0.009465144231 | DQ42: 0 | DR42: 0.01014122596 | DS42: 0.02028245192 | DT42: 0.03042367788 | DU42: 0.04056490385 | DV42: 0.05070612981 | DW42: 0.06084735577 | DX42: 0.07098858173 | DY42: 0.08112980769 | DZ42: 0.08112980769 | EA42: 0.03718449519 | EB42: -0.006760817308 | EC42: -0.05070612981 | ED42: -0.09465144231 | EU42: 0 | EV42: 0.0001663794884 | EW42: 0.0003169133113 | EX42: 0.000435755803 | EY42: 0.0005070612981 | EZ42: 0.0005149841309 | FA42: 0.0004436786358 | FB42: 0.0002772991474 | FC42: 0 | FD42: 0 | FE42: -0.0006239230816 | FF42: -0.001378572904 | FG42: -0.002109454228 | FH42: -0.002662071815 | FJ42: 0 | FK42: 0.01663794884 | FL42: 0.03169133113 | FM42: 0.0435755803 | FN42: 0.05070612981 | FO42: 0.05149841309 | FP42: 0.04436786358 | FQ42: 0.02772991474 | FR42: 0 | FS42: 0 | FT42: -0.06239230816 | FU42: -0.1378572904 | FV42: -0.2109454228 | FW42: -0.2662071815
D43: ×L12/10 | R43: ×L1 | BC43: 24 | BE43: 1 | BF43: =-1/(12*(1/3+Input!$B$1/2))*(2*BE43-3*BE43^2+BE43^3) -> 0 | BG43: =1/(12*(1/3+Input!$B$1/6))*(2*BE43-3*BE43^2+BE43^3) -> 0 | BI43: 0 | BL43: =+BK43-BF43-(1+2/Input!$B$1)*BG43 -> 0 | BN43: 0 | BP43: =+BO43-2*BG43/Input!$B$1 -> 0 | BT43: 0 | BU43: 0 | BV43: 0 | BY43: 0 | BZ43: 0 | CA43: 0 | CD43: =-BF43/2*Input!$B$1 -> 0 | CE43: =-BG43/6*Input!$B$1 -> 0 | CF43: 0 | DB43: 0 | DC43: 0 | DD43: 0 | DE43: 0 | DF43: 0 | DG43: 0 | DH43: 0 | DI43: 0 | DJ43: 0 | DK43: 0 | DL43: 0 | DM43: 0 | DN43: 0 | DO43: 0 | DQ43: 0 | DR43: 0 | DS43: 0 | DT43: 0 | DU43: 0 | DV43: 0 | DW43: 0 | DX43: 0 | DY43: 0 | DZ43: 0 | EA43: 0 | EB43: 0 | EC43: 0 | ED43: 0 | EU43: 0 | EV43: 0 | EW43: 0 | EX43: 0 | EY43: 0 | EZ43: 0 | FA43: 0 | FB43: 0 | FC43: 0 | FD43: 0 | FE43: 0 | FF43: 0 | FG43: 0 | FH43: 0 | FJ43: 0 | FK43: 0 | FL43: 0 | FM43: 0 | FN43: 0 | FO43: 0 | FP43: 0 | FQ43: 0 | FR43: 0 | FS43: 0 | FT43: 0 | FU43: 0 | FV43: 0 | FW43: 0
D45: Deflection | R45: Slope | EU45: =+(CN$4*(0.5*CN$3^2-0.5*CN$3^2*CN$4^2-0.25*CN$3^4)+CN$3*(0.5*CN$4^2-0.5*CN$3^2*CN$4^2-0.25*CN$4^4))/6 -> 0 | EV45: =+(CO$4*(0.5*CO$3^2-0.5*CO$3^2*CO$4^2-0.25*CO$3^4)+CO$3*(0.5*CO$4^2-0.5*CO$3^2*CO$4^2-0.25*CO$4^4))/6 -> 0.005055745443 | EW45: 0.00927734375 | EX45: 0.01205444336 | EY45: 0.01302083333 | EZ45: 0.01205444336 | FA45: 0.00927734375 | FB45: 0.005055745443 | FC45: 0 | FD45: =+(CW$4*(0.5*CW$3^2-0.5*CW$3^2*CW$4^2-0.25*CW$3^4)+CW$3*(0.5*CW$4^2-0.5*CW$3^2*CW$4^2-0.25*CW$4^4))/6*Input!$B$1^4 -> 0 | FE45: =+(CX$4*(0.5*CX$3^2-0.5*CX$3^2*CX$4^2-0.25*CX$3^4)+CX$3*(0.5*CX$4^2-0.5*CX$3^2*CX$4^2-0.25*CX$4^4))/6*Input!$B$1^4 -> 0.0255947113 | FF45: =+(CY$4*(0.5*CY$3^2-0.5*CY$3^2*CY$4^2-0.25*CY$3^4)+CY$3*(0.5*CY$4^2-0.5*CY$3^2*CY$4^2-0.25*CY$4^4))/6*Input!$B$1^4 -> 0.04696655273 | FG45: =+(CZ$4*(0.5*CZ$3^2-0.5*CZ$3^2*CZ$4^2-0.25*CZ$3^4)+CZ$3*(0.5*CZ$4^2-0.5*CZ$3^2*CZ$4^2-0.25*CZ$4^4))/6*Input!$B$1^4 -> 0.06102561951 | FH45: =+(DA$4*(0.5*DA$3^2-0.5*DA$3^2*DA$4^2-0.25*DA$3^4)+DA$3*(0.5*DA$4^2-0.5*DA$3^2*DA$4^2-0.25*DA$4^4))/6*Input!$B$1^4 -> 0.06591796875
D46: 0 | E46: =+D46+1 -> 1 | F46: 2 | G46: 3 | H46: 4 | I46: 5 | J46: 6 | K46: 7 | L46: 8 | M46: 8 | N46: =+M46+1 -> 9 | O46: =+N46+1 -> 10 | P46: =+O46+1 -> 11 | Q46: =+P46+1 -> 12 | R46: SA | S46: lSB
D47: =+E47+1 -> 24 | E47: 23 | F47: 22 | G47: 21 | H47: 20 | I47: 19 | J47: 18 | K47: 17 | L47: 16 | M47: =+N47+1 -> 16 | N47: =+O47+1 -> 15 | O47: =+P47+1 -> 14 | P47: =+Q47+1 -> 13 | Q47: 12 | BE47: Fx(1)1/(L1^2) = | BF47: =-1/(8*(2+3*Input!B1)) -> -0.01923076923 | BG47: =-1/(8*(2+Input!B1)) -> -0.03571428571 | BI47: =0.5+BF47+BG47 -> 0.4450549451 | BL47: =0.5-BF47-(1+2/Input!B1)*BG47 -> 0.6025641026 | BN47: =-0.5+BF47+BG47 -> -0.5549450549 | BP47: =-2*BG47/Input!B1 -> 0.04761904762 | BS47: =-(0.0416666666666667) -> -0.04166666667 | BT47: =-BF47/6 -> 0.003205128205 | BU47: =-BG47/6 -> 0.005952380952 | BV47: =+BS47+BT47+BU47 -> -0.03250915751 | BX47: =(1/24) -> 0.04166666667 | BY47: =+BF47/3 -> -0.00641025641 | BZ47: =+BG47/3 -> -0.0119047619 | CA47: =+BX47+BY47+BZ47 -> 0.02335164835 | CD47: =-BF47/2*Input!$B$1 -> 0.01442307692 | CE47: =-BG47/6*Input!$B$1 -> 0.008928571429 | CF47: =+CC47+CD47+CE47 -> 0.02335164835 | DB47: =+CN5/2+CN6*$BF$47+CN7*$BG$47 -> 0 | DC47: 0.04781936813 | DD47: 0.08001373626 | DE47: 0.0965831044 | DF47: 0.09752747253 | DG47: 0.08284684066 | DH47: 0.05254120879 | DI47: 0.006610576923 | DJ47: -0.05494505495 | DK47: =CW6*$BF$47+CW7*$BG$47 -> -0.05494505495 | DL47: =CX6*$BF$47+CX7*$BG$47 -> -0.04601648352 | DM47: =CY6*$BF$47+CY7*$BG$47 -> -0.03708791209 | DN47: =CZ6*$BF$47+CZ7*$BG$47 -> -0.02815934066 | DO47: =DA6*$BF$47+DA7*$BG$47 -> -0.01923076923 | DQ47: 0 | DR47: =+DC47*10 -> 0.4781936813 | DS47: =+DD47*10 -> 0.8001373626 | DT47: =+DE47*10 -> 0.965831044 | DU47: =+DF47*10 -> 0.9752747253 | DV47: =+DG47*10 -> 0.8284684066 | DW47: =+DH47*10 -> 0.5254120879 | DX47: =+DI47*10 -> 0.06610576923 | DY47: =+DJ47*10 -> -0.5494505495 | DZ47: =+DK47*10 -> -0.5494505495 | EA47: =+DL47*10 -> -0.4601648352 | EB47: =+DM47*10 -> -0.3708791209 | EC47: =+DN47*10 -> -0.2815934066 | ED47: =+DO47*10 -> -0.1923076923 | EU47: =+EU45+CN$8*$BF$47+CN$9*$BG$47 -> 0 | EV47: 0.003928942558 | EW47: 0.007131052541 | EX47: 0.009103292947 | EY47: 0.009586767399 | EZ47: 0.008566720145 | FA47: 0.006272536058 | FB47: 0.003177740635 | FC47: 0 | FD47: =CW$8*$BF$47+CW$9*$BG$47 -> 0 | FE47: =CX$8*$BF$47+CX$9*$BG$47 -> -0.00346491887 | FF47: =CY$8*$BF$47+CY$9*$BG$47 -> -0.005312070742 | FG47: =CZ$8*$BF$47+CZ$9*$BG$47 -> -0.005855350704 | FH47: =DA$8*$BF$47+DA$9*$BG$47 -> -0.005408653846 | FJ47: =+EU47*100 -> 0 | FK47: =+EV47*100 -> 0.3928942558 | FL47: 0.7131052541 | FM47: 0.9103292947 | FN47: 0.9586767399 | FO47: 0.8566720145 | FP47: 0.6272536058 | FQ47: 0.3177740635 | FR47: 0 | FS47: 0 | FT47: -0.346491887 | FU47: -0.5312070742 | FV47: -0.5855350704 | FW47: -0.5408653846
C48: =+E48 -> 0 | D48: =+FJ17 -> 0 | E48: =+FK17 -> 0 | F48: =+FL17 -> 0 | G48: =+FM17 -> 0 | H48: =+FN17 -> 0 | I48: =+FO17 -> 0 | J48: =+FP17 -> 0 | K48: =+FQ17 -> 0 | L48: =+FR17 -> 0 | M48: =+FS17 -> 0 | N48: =+FT17 -> 0 | O48: =+FU17 -> 0 | P48: =+FV17 -> 0 | Q48: =+FW17 -> 0 | R48: =+BV17*10 -> 0 | S48: =+CA17*10 -> 0 | BE48: Fx(1)2/(L1^2) = | BF48: =-(Input!B1^3)/(4*(2+3*Input!B1)) -> -0.1298076923 | BG48: 0 | BI48: =BF48+BG48 -> -0.1298076923 | BL48: =+Input!B1/2-BF48-(1+2/Input!B1)*BG48 -> 0.8798076923 | BN48: =+BF48+BG48 -> -0.1298076923 | BP48: =+Input!B1/2-BG48/Input!B1 -> 0.75 | BT48: 0.02163461538 | BU48: 0 | BV48: 0.02163461538 | BY48: -0.04326923077 | BZ48: 0 | CA48: -0.04326923077 | CC48: =-(0.0416666666666667)*Input!$B$1^3 -> -0.140625 | CD48: =-BF48/2*Input!$B$1 -> 0.09735576923 | CE48: =-BG48/6*Input!$B$1 -> 0 | CF48: -0.04326923077 | DB48: =+CN6*$BF$48+CN7*$BG$48 -> 0 | DC48: -0.01622596154 | DD48: -0.03245192308 | DE48: -0.04867788462 | DF48: -0.06490384615 | DG48: -0.08112980769 | DH48: -0.09735576923 | DI48: -0.1135817308 | DJ48: -0.1298076923 | DK48: =Input!$B$1^2/2*CW5+CW6*$BF$48+CW7*$BG$48 -> -0.1298076923 | DL48: =Input!$B$1^2/2*CX5+CX6*$BF$48+CX7*$BG$48 -> -0.006760817308 | DM48: =Input!$B$1^2/2*CY5+CY6*$BF$48+CY7*$BG$48 -> 0.08112980769 | DN48: =Input!$B$1^2/2*CZ5+CZ6*$BF$48+CZ7*$BG$48 -> 0.1338641827 | DO48: =Input!$B$1^2/2*DA5+DA6*$BF$48+DA7*$BG$48 -> 0.1514423077 | DQ48: 0 | DR48: -0.1622596154 | DS48: -0.3245192308 | DT48: -0.4867788462 | DU48: -0.6490384615 | DV48: -0.8112980769 | DW48: -0.9735576923 | DX48: -1.135817308 | DY48: -1.298076923 | DZ48: -1.298076923 | EA48: -0.06760817308 | EB48: 0.8112980769 | EC48: 1.338641827 | ED48: 1.514423077 | EU48: =+CN$8*$BF$48+CN$9*$BG$48 -> 0 | EV48: -0.002662071815 | EW48: -0.005070612981 | EX48: -0.006972092849 | EY48: -0.008112980769 | EZ48: -0.008239746094 | FA48: -0.007098858173 | FB48: -0.004436786358 | FC48: 0 | FD48: =+FD45+CW$8*$BF$48+CW$9*$BG$48 -> 0 | FE48: =+FE45+CX$8*$BF$48+CX$9*$BG$48 -> 0.009622280414 | FF48: =+FF45+CY$8*$BF$48+CY$9*$BG$48 -> 0.01958524264 | FG48: =+FG45+CZ$8*$BF$48+CZ$9*$BG$48 -> 0.02679898189 | FH48: =+FH45+DA$8*$BF$48+DA$9*$BG$48 -> 0.02940955529 | FJ48: =+EU48*100 -> 0 | FK48: -0.2662071815 | FL48: -0.5070612981 | FM48: -0.6972092849 | FN48: -0.8112980769 | FO48: -0.8239746094 | FP48: -0.7098858173 | FQ48: -0.4436786358 | FR48: 0 | FS48: 0 | FT48: 0.9622280414 | FU48: 1.958524264 | FV48: 2.679898189 | FW48: 2.940955529
C49: =+C48+1 -> 1 | D49: 0 | E49: 0.3433031914 | F49: 0.5535419171 | G49: 0.6278600448 | H49: 0.5959535256 | I49: 0.4875183105 | J49: 0.3322503506 | K49: 0.1598455967 | L49: 0 | M49: 0 | N49: -0.1705389756 | O49: -0.2614534818 | P49: -0.2881930425 | Q49: -0.2662071815 | R49: -0.2967247596 | S49: 0.1149338942 | BE49: Fx(1)3/(L1^2) = | BF49: =+BF47 -> -0.01923076923 | BG49: =1/(8*(2+Input!B1)) -> 0.03571428571 | BI49: =BF49+BG49 -> 0.01648351648 | BL49: =-BF49-(1+2/Input!B1)*BG49 -> -0.0641025641 | BN49: =+BF49+BG49 -> 0.01648351648 | BP49: =-BG49*2/Input!B1 -> -0.04761904762 | BT49: 0.003205128205 | BU49: -0.005952380952 | BV49: -0.002747252747 | BY49: -0.00641025641 | BZ49: 0.0119047619 | CA49: 0.005494505495 | CD49: =-BF49/2*Input!$B$1 -> 0.01442307692 | CE49: =-BG49/6*Input!$B$1 -> -0.008928571429 | CF49: 0.005494505495 | DB49: =+CN6*$BF$49+CN7*$BG$49 -> 0 | DC49: 0.00206043956 | DD49: 0.004120879121 | DE49: 0.006181318681 | DF49: 0.008241758242 | DG49: 0.0103021978 | DH49: 0.01236263736 | DI49: 0.01442307692 | DJ49: 0.01648351648 | DK49: 0.01648351648 | DL49: 0.007554945055 | DM49: -0.001373626374 | DN49: -0.0103021978 | DO49: -0.01923076923 | DQ49: 0 | DR49: 0.0206043956 | DS49: 0.04120879121 | DT49: 0.06181318681 | DU49: 0.08241758242 | DV49: 0.103021978 | DW49: 0.1236263736 | DX49: 0.1442307692 | DY49: 0.1648351648 | DZ49: 0.1648351648 | EA49: 0.07554945055 | EB49: -0.01373626374 | EC49: -0.103021978 | ED49: -0.1923076923 | EU49: =+CN$8*$BF$49+CN$9*$BG$49 -> 0 | EV49: 0.0003380408654 | EW49: 0.0006438873626 | EX49: 0.0008853451236 | EY49: 0.00103021978 | EZ49: 0.001046316964 | FA49: 0.0009014423077 | FB49: 0.0005634014423 | FC49: 0 | FD49: 0 | FE49: -0.001267653245 | FF49: -0.002800910027 | FG49: -0.004285875258 | FH49: -0.005408653846 | FJ49: 0 | FK49: 0.03380408654 | FL49: 0.06438873626 | FM49: 0.08853451236 | FN49: 0.103021978 | FO49: 0.1046316964 | FP49: 0.09014423077 | FQ49: 0.05634014423 | FR49: 0 | FS49: 0 | FT49: -0.1267653245 | FU49: -0.2800910027 | FV49: -0.4285875258 | FW49: -0.5408653846
C50: 2 | D50: 0 | E50: 0.5535419171 | F50: 0.9706601992 | G50: 1.147483295 | H50: 1.110347985 | I50: 0.9181431362 | J50: 0.6297576122 | K50: 0.3040802784 | L50: 0 | M50: 0 | N50: -0.3248361441 | O50: -0.498006632 | P50: -0.5489391285 | Q50: -0.5070612981 | R50: -0.4610233516 | S50: 0.2189217033 | BI50: =+SUM(BI47:BI49) -> 0.3317307692 | BL50: =+SUM(BL47:BL49) -> 1.418269231 | BN50: =+SUM(BN47:BN49) -> -0.6682692308 | BP50: =+SUM(BP47:BP49) -> 0.75 | BV50: =+SUM(BV47:BV49) -> -0.01362179487 | CA50: =+SUM(CA47:CA49) -> -0.01442307692 | CF50: =+SUM(CF47:CF49) -> -0.01442307692 | DB50: =+SUM(DB47:DB49) -> 0 | DC50: =+SUM(DC47:DC49) -> 0.03365384615 | DD50: =+SUM(DD47:DD49) -> 0.05168269231 | DE50: 0.05408653846 | DF50: 0.04086538462 | DG50: 0.01201923077 | DH50: -0.03245192308 | DI50: -0.09254807692 | DJ50: -0.1682692308 | DK50: =+SUM(DK47:DK49) -> -0.1682692308 | DL50: -0.04522235577 | DM50: 0.04266826923 | DN50: 0.09540264423 | DO50: 0.1129807692 | DQ50: 0 | DR50: 0.3365384615 | DS50: 0.5168269231 | DT50: 0.5408653846 | DU50: 0.4086538462 | DV50: 0.1201923077 | DW50: -0.3245192308 | DX50: -0.9254807692 | DY50: -1.682692308 | DZ50: -1.682692308 | EA50: -0.4522235577 | EB50: 0.4266826923 | EC50: 0.9540264423 | ED50: 1.129807692 | EU50: =+SUM(EU47:EU49) -> 0 | EV50: =+SUM(EV47:EV49) -> 0.001604911609 | EW50: 0.002704326923 | EX50: 0.003016545222 | EY50: 0.00250400641 | EZ50: 0.001373291016 | FA50: 7.512019231e-05 | FB50: -0.0006956442808 | FC50: 0 | FD50: 0 | FE50: 0.004889708299 | FF50: 0.01147226187 | FG50: 0.01665775593 | FH50: 0.0185922476 | FJ50: 0 | FK50: 0.1604911609 | FL50: 0.2704326923 | FM50: 0.3016545222 | FN50: 0.250400641 | FO50: 0.1373291016 | FP50: 0.007512019231 | FQ50: -0.06956442808 | FR50: 0 | FS50: 0 | FT50: 0.4889708299 | FU50: 1.147226187 | FV50: 1.665775593 | FW50: 1.85922476
C51: 3 | D51: 0 | E51: 0.6278600448 | F51: 1.147483295 | G51: 1.450632955 | H51: 1.461624313 | I51: 1.234980992 | J51: 0.8577786959 | K51: 0.4170931303 | L51: 0 | M51: 0 | N51: -0.4466496981 | O51: -0.6847591191 | P51: -0.7547913017 | Q51: -0.6972092849 | R51: -0.5167196085 | S51: 0.301017342
C52: 4 | D52: 0 | E52: 0.5959535256 | F52: 1.110347985 | G52: 1.461624313 | H52: 1.568223443 | I52: 1.381138393 | J52: 0.9815705128 | K52: 0.4832732372 | L52: 0 | M52: 0 | N52: -0.5197378305 | O52: -0.7968106113 | P52: -0.8783026056 | Q52: -0.8112980769 | R52: -0.4876373626 | S52: 0.3502747253 | DT52: =30*DT20*45/10 -> 280.5497725 | EC52: =30*EC29*45/10 -> 303.9651389
C53: 5 | D53: 0 | E53: 0.4875183105 | F53: 0.9181431362 | G53: 1.234980992 | H53: 1.381138393 | I53: 1.299721854 | J53: 0.966389974 | K53: 0.4870096842 | L53: 0 | M53: 0 | N53: -0.5278587341 | O53: -0.8092607771 | P53: -0.8920260838 | Q53: -0.8239746094 | R53: -0.3976004464 | S53: 0.3557477679 | BN53: =30*BN25+(0.4*BN47+0.3*BN48+2*BN50)*45 -> -101.8856456 | BP53: =30*BP26+(0.4*BP47+0.3*BP48+2*BP50)*45 -> 108.4821429 | DT53: =0.4*DT47*45^2/10 -> 78.23231456 | EC53: =0.3*EC48*45^2/10 -> 81.32249099
C54: 6 | D54: 0 | E54: 0.3322503506 | F54: 0.6297576122 | G54: 0.8577786959 | H54: 0.9815705128 | I54: 0.966389974 | J54: 0.7774939904 | K54: 0.4126915565 | L54: 0 | M54: 0 | N54: -0.4547706017 | O54: -0.6972092849 | P54: -0.7685147799 | Q54: -0.7098858173 | R54: -0.2704326923 | S54: 0.3064903846 | DT54: =0.5*DT49*45^2/10 -> 6.258585165
C55: 7 | D55: 0 | E55: 0.1598455967 | F55: 0.3040802784 | G55: 0.4170931303 | H55: 0.4832732372 | I55: 0.4870096842 | J55: 0.4126915565 | K55: 0.244707939 | L55: 0 | M55: 0 | N55: -0.2842316261 | O55: -0.435755803 | P55: -0.4803217374 | Q55: -0.4436786358 | R55: -0.1299579327 | S55: 0.1915564904 | DT55: =2*DT50*45^2/10 -> 219.0504808 | EC55: =0.2*EC50*45^2/10 -> 38.63807091
C56: 8 | D56: 0 | E56: 0 | F56: 0 | G56: 0 | H56: 0 | I56: 0 | J56: 0 | K56: 0 | L56: 0 | M56: 0 | N56: 0 | O56: 0 | P56: 0 | Q56: 0 | R56: 0 | S56: 0
C57: =+C56 -> 8 | D57: 0 | E57: 0 | F57: 0 | G57: 0 | H57: 0 | I57: 0 | J57: 0 | K57: 0 | L57: 0 | M57: 0 | N57: 0 | O57: 0 | P57: 0 | Q57: 0 | R57: 0 | S57: 0 | DT57: =+SUM(DT52:DT55) -> 584.091153 | EC57: =+SUM(EC52:EC55) -> 423.9257008
C58: =+C57+1 -> 9 | D58: 0 | E58: -0.1705389756 | F58: -0.3248361441 | G58: -0.4466496981 | H58: -0.5197378305 | I58: -0.5278587341 | J58: -0.4547706017 | K58: -0.2842316261 | L58: 0 | M58: 0 | N58: 0.5659213433 | O58: 0.9341019851 | P58: 1.053901819 | Q58: 0.9845440204 | R58: 0.1385967548 | S58: -0.2771935096
C59: 10 | D59: 0 | E59: -0.2614534818 | F59: -0.498006632 | G59: -0.6847591191 | H59: -0.7968106113 | I59: -0.8092607771 | J59: -0.6972092849 | K59: -0.435755803 | L59: 0 | M59: 0 | N59: 0.9341019851 | O59: 1.795540275 | P59: 2.173308488 | Q59: 2.095853365 | R59: 0.2124828297 | S59: -0.4249656593
C60: 11 | D60: 0 | E60: -0.2881930425 | F60: -0.5489391285 | G60: -0.7547913017 | H60: -0.8783026056 | I60: -0.8920260838 | J60: -0.7685147799 | K60: -0.4803217374 | L60: 0 | M60: 0 | N60: 1.053901819 | O60: 2.173308488 | P60: 2.92967964 | Q60: 3.004338191 | R60: 0.2342140282 | S60: -0.4684280563
C61: 12 | D61: 0 | E61: -0.2662071815 | F61: -0.5070612981 | G61: -0.6972092849 | H61: -0.8112980769 | I61: -0.8239746094 | J61: -0.7098858173 | K61: -0.4436786358 | L61: 0 | M61: 0 | N61: 0.9845440204 | O61: 2.095853365 | P61: 3.004338191 | Q61: 3.380408654 | R61: 0.2163461538 | S61: -0.4326923077
C62: 13 | D62: 0 | E62: -0.2109454228 | F62: -0.4018008054 | G62: -0.5524761074 | H62: -0.6428812886 | I62: -0.6529263088 | J62: -0.5625211276 | K62: -0.3515757047 | L62: 0 | M62: 0 | N62: 0.7852517642 | O62: 1.701484932 | P62: 2.518060181 | Q62: 3.004338191 | R62: 0.1714350103 | S62: -0.3428700206
C63: 14 | D63: 0 | E63: -0.1378572904 | F63: -0.2625853151 | G63: -0.3610548082 | H63: -0.4201365041 | I63: -0.426701137 | J63: -0.3676194411 | K63: -0.2297621507 | L63: 0 | M63: 0 | N63: 0.5152482253 | O63: 1.12851321 | P63: 1.701484932 | Q63: 2.095853365 | R63: 0.1120364011 | S63: -0.2240728022
C64: 15 | D64: 0 | E64: -0.06239230816 | F64: -0.1188424917 | G64: -0.1634084261 | H64: -0.1901479868 | I64: -0.1931190491 | J64: -0.1663794884 | K64: -0.1039871803 | L64: 0 | M64: 0 | N64: 0.2337565789 | O64: 0.5152482253 | P64: 0.7852517642 | Q64: 0.9845440204 | R64: 0.05070612981 | S64: -0.1014122596
C65: 16 | D65: 0 | E65: 0 | F65: 0 | G65: 0 | H65: 0 | I65: 0 | J65: 0 | K65: 0 | L65: 0 | M65: 0 | N65: 0 | O65: 0 | P65: 0 | Q65: 0 | R65: 0 | S65: 0
C66: =+C65 -> 16 | D66: 0 | E66: 0 | F66: 0 | G66: 0 | H66: 0 | I66: 0 | J66: 0 | K66: 0 | L66: 0 | M66: 0 | N66: 0 | O66: 0 | P66: 0 | Q66: 0 | R66: 0 | S66: 0
C67: =+C66+1 -> 17 | D67: 0 | E67: 0.02772991474 | F67: 0.05281888522 | G67: 0.07262596717 | H67: 0.08451021635 | I67: 0.08583068848 | J67: 0.0739464393 | K67: 0.04621652456 | L67: 0 | M67: 0 | N67: -0.1039871803 | O67: -0.2297621507 | P67: -0.3515757047 | Q67: -0.4436786358 | R67: -0.02253605769 | S67: 0.04507211538
C68: 18 | D68: 0 | E68: 0.04436786358 | F68: 0.08451021635 | G68: 0.1162015475 | H68: 0.1352163462 | I68: 0.1373291016 | J68: 0.1183143029 | K68: 0.0739464393 | L68: 0 | M68: 0 | N68: -0.1663794884 | O68: -0.3676194411 | P68: -0.5625211276 | Q68: -0.7098858173 | R68: -0.03605769231 | S68: 0.07211538462
C69: 19 | D69: 0 | E69: 0.05149841309 | F69: 0.0980922154 | G69: 0.1348767962 | H69: 0.1569475446 | I69: 0.15939985 | J69: 0.1373291016 | K69: 0.08583068848 | L69: 0 | M69: 0 | N69: -0.1931190491 | O69: -0.426701137 | P69: -0.6529263088 | Q69: -0.8239746094 | R69: -0.04185267857 | S69: 0.08370535714
C70: 20 | D70: 0 | E70: 0.05070612981 | F70: 0.0965831044 | G70: 0.1328017685 | H70: 0.154532967 | I70: 0.1569475446 | J70: 0.1352163462 | K70: 0.08451021635 | L70: 0 | M70: 0 | N70: -0.1901479868 | O70: -0.4201365041 | P70: -0.6428812886 | Q70: -0.8112980769 | R70: -0.04120879121 | S70: 0.08241758242
C71: 21 | D71: 0 | E71: 0.0435755803 | F71: 0.08300110534 | G71: 0.1141265198 | H71: 0.1328017685 | I71: 0.1348767962 | J71: 0.1162015475 | K71: 0.07262596717 | L71: 0 | M71: 0 | N71: -0.1634084261 | O71: -0.3610548082 | P71: -0.5524761074 | Q71: -0.6972092849 | R71: -0.03541380495 | S71: 0.07082760989
C72: 22 | D72: 0 | E72: 0.03169133113 | F72: 0.06036444025 | G72: 0.08300110534 | H72: 0.0965831044 | I72: 0.0980922154 | J72: 0.08451021635 | K72: 0.05281888522 | L72: 0 | M72: 0 | N72: -0.1188424917 | O72: -0.2625853151 | P72: -0.4018008054 | Q72: -0.5070612981 | R72: -0.02575549451 | S72: 0.05151098901
C73: 23 | D73: 0 | E73: 0.01663794884 | F73: 0.03169133113 | G73: 0.0435755803 | H73: 0.05070612981 | I73: 0.05149841309 | J73: 0.04436786358 | K73: 0.02772991474 | L73: 0 | M73: 0 | N73: -0.06239230816 | O73: -0.1378572904 | P73: -0.2109454228 | Q73: -0.2662071815 | R73: -0.01352163462 | S73: 0.02704326923
C74: 24 | D74: 0 | E74: 0 | F74: 0 | G74: 0 | H74: 0 | I74: 0 | J74: 0 | K74: 0 | L74: 0 | M74: 0 | N74: 0 | O74: 0 | P74: 0 | Q74: 0 | R74: 0 | S74: 0
D75: ×L13/(100×EI) | R75: ×(L12/EI)/10
C76: Span 1 | D76: =+FJ47 -> 0 | E76: 0.3928942558 | F76: 0.7131052541 | G76: 0.9103292947 | H76: 0.9586767399 | I76: 0.8566720145 | J76: 0.6272536058 | K76: 0.3177740635 | L76: 0 | M76: 0 | N76: -0.346491887 | O76: -0.5312070742 | P76: -0.5855350704 | Q76: -0.5408653846 | R76: =+BV47*10 -> -0.3250915751 | S76: =+CA47*10 -> 0.2335164835
C77: Span 2 | D77: 0 | E77: -0.2662071815 | F77: -0.5070612981 | G77: -0.6972092849 | H77: -0.8112980769 | I77: -0.8239746094 | J77: -0.7098858173 | K77: -0.4436786358 | L77: 0 | M77: 0 | N77: 0.9622280414 | O77: 1.958524264 | P77: 2.679898189 | Q77: 2.940955529 | R77: =+BV48*10 -> 0.2163461538 | S77: =+CA48*10 -> -0.4326923077
C78: Span 3 | D78: 0 | E78: 0.03380408654 | F78: 0.06438873626 | G78: 0.08853451236 | H78: 0.103021978 | I78: 0.1046316964 | J78: 0.09014423077 | K78: 0.05634014423 | L78: 0 | M78: 0 | N78: -0.1267653245 | O78: -0.2800910027 | P78: -0.4285875258 | Q78: -0.5408653846 | R78: =+BV49*10 -> -0.02747252747 | S78: =+CA49*10 -> 0.05494505495
C79: Sum | D79: 0 | E79: 0.1604911609 | F79: 0.2704326923 | G79: 0.3016545222 | H79: 0.250400641 | I79: 0.1373291016 | J79: 0.007512019231 | K79: -0.06956442808 | L79: 0 | M79: 0 | N79: 0.4889708299 | O79: 1.147226187 | P79: 1.665775593 | Q79: 1.85922476 | R79: =+BV50*10 -> -0.1362179487 | S79: =+CA50*10 -> -0.1442307692
D80: ×L14/(100×EI) | R80: ×(L13/EI)/10
